Workbook

Sheet GCSE Starter
C1: Yes | BQ1: Yes | BR1: A, G, N or D | BS1: Yes/No | BT1: Random Number | BU1: Topic | BV1: Calculator or Non calculator | BW1: Grade
C2: No | BQ2: No
A3: Number | B3: 1 | C3: a) | F3: Simplify by rationalising the denominator | Z3: =N!YT2 -> 6 | AG3: b) | AJ3: Simplify | AR3: =N!YX4 -> (7 − √6)(4 − √6) | BR3: Number | BS3: Yes | BT3: =RANDBETWEEN(1,8) -> 3 | BU3: Surds | BV3: NC | BW3: A
A4: Number | Z4: =N!YT3 -> √3 | BR4: Number | BS4: =BS3 -> Yes | BT4: =BT3 -> 3 | BU4: =BU3 -> Surds | BV4: NC | BW4: A
A5: Number | BR5: Number | BS5: =BS4 -> Yes | BT5: =BT4 -> 3 | BU5: Surds | BV5: NC | BW5: A
A6: Algebra | B6: 2 | C6: Solve | H6: a) | K6: d2 | M6: =CONCATENATE(A!SB3," = 0") -> + 2d − 3 = 0 | Z6: b) | AC6: x2 | AE6: =A!XU3 -> −2x − 4 = 0 | AS6: x = -b ± √(b2 − 4ac) | BR6: Algebra | BS6: Yes | BT6: =RANDBETWEEN(1,8) -> 2 | BU6: Quadratic Equation | BV6: C | BW6: B
A7: Algebra | AC7: answer to 1 dp | AV7: 2a | BR7: Algebra | BS7: =BS6 -> Yes | BT7: 2 | BU7: Quadratic Equation | BV7: C | BW7: B
A8: Algebra | BR8: Algebra | BS8: Yes | BT8: 2 | BU8: Quadratic Equation | BV8: C | BW8: B
A9: Geometry | B9: 1 | C9: a) | G9: Calculate the size of angle x | AG9: a) | AK9: Calculate the length of side y | BR9: Geometry | BS9: Yes | BT9: =RANDBETWEEN(1,8) -> 5 | BU9: Trigonometry | BV9: C | BW9: B
A10: Geometry | S10: =G!XY12 ->  | AW10: =G!YH3 -> y | BR10: Geometry | BS10: =BS9 -> Yes | BT10: 5 | BU10: Trigonometry | BV10: C | BW10: B
A11: Geometry | X11: =G!XY19 -> x | BB11: =G!YK3 -> 57° | BR11: Geometry | BS11: Yes | BT11: 5 | BU11: Trigonometry | BV11: C | BW11: B
A12: Geometry | AC12: =G!XX12 -> 9 | BG12: =G!YG3 ->  | BR12: Geometry | BS12: Yes | BT12: 5 | BU12: Trigonometry | BV12: C | BW12: B
A13: Geometry | C13: =G!XW13 -> 1 | D13: =G!XX13 -> 1 | E13: =G!XY13 -> 0 | P13: =G!XX19 ->  | AG13: =G!ZA13 -> 0 | AH13: =G!ZB13 -> 0 | AI13: =G!ZC13 -> 7 | AT13: =G!YJ3 ->  | BF13: =G!YF19 -> 1 | BG13: =G!YG19 -> 0 | BH13: =G!YH19 -> 1 | BR13: Geometry | BS13: Yes | BT13: 5 | BU13: Trigonometry | BV13: C | BW13: B
A14: Geometry | BR14: Geometry | BS14: Yes | BT14: 5 | BU14: Trigonometry | BV14: C | BW14: B
A15: Geometry | R15: =G!XW12 -> 8 | AV15: =G!YF3 -> 2 | BR15: Geometry | BS15: Yes | BT15: 5 | BU15: Trigonometry | BV15: C | BW15: B
A16: Geometry | BR16: Geometry | BS16: Yes | BT16: 5 | BU16: Trigonometry | BV16: C | BW16: B
A17: Data | B17: 1 | C17: =D!KU1 -> Sketch and label a box plot for the following data | BR17: Data | BS17: Yes | BT17: =RANDBETWEEN(1,8) -> 8 | BU17: Box and Whisker | BV17: NC | BW17: B | CO17: =G!ZK12 -> 0
A18: Data | C18: =RANDBETWEEN(1,20) -> 7 | G18: =RANDBETWEEN(21,30) -> 25 | K18: =RANDBETWEEN(31,50) -> 41 | O18: =RANDBETWEEN(51,65) -> 57 | S18: =RANDBETWEEN(66,70) -> 69 | W18: =RANDBETWEEN(71,80) -> 78 | AA18: =RANDBETWEEN(81,85) -> 83 | AE18: =RANDBETWEEN(86,90) -> 88 | AI18: =RANDBETWEEN(91,100) -> 97 | AN18: =RANDBETWEEN(101,110) -> 109 | AS18: =RANDBETWEEN(111,120) -> 117 | BR18: Data | BS18: =BS17 -> Yes | BT18: =BT17 -> 8 | BU18: =BU17 -> Box and Whisker | BV18: =BV17 -> NC | BW18: =BW17 -> B
A19: Data | BR19: Data | BS19: =BS18 -> Yes | BT19: 8 | BU19: Box and Whisker | BV19: NC | BW19: B
A20: Algebra | B20: 6 | D20: Solve the simultaneous equations | AF20: a) | AH20: =A!WD2 -> 3a + 3b = 15 | AW20: b) | AY20: =A!TM2 -> 4a + 3b = 17 | BR20: Algebra | BS20: Yes | BT20: =RANDBETWEEN(1,8) -> 4 | BU20: Simultaneous Equations | BV20: NC | BW20: B
A21: Algebra | AH21: =A!WD3 -> 5a + 3b = 23 | AY21: =A!TM3 -> 3a − b = 3 | BR21: Algebra | BS21: =BS20 -> Yes | BT21: 4 | BU21: Simultaneous Equations
A22: Algebra | BR22: Algebra | BS22: Yes | BT22: 4 | BU22: Simultaneous Equations
A23: Geometry | B23: 5 | D23: Calculate the missing length | AE23: =G!WI3 -> xcm | BR23: Geometry | BS23: Yes | BT23: =RANDBETWEEN(1,8) -> 8 | BU23: Pythagoras | BV23: NC | BW23: C
A24: Geometry | AU24: =G!WG3 -> 3cm | BR24: Geometry | BS24: =BS23 -> Yes | BT24: 8 | BU24: Pythagoras
A25: Geometry | BR25: Geometry | BS25: Yes | BT25: 8 | BU25: Pythagoras
A26: Geometry | BR26: Geometry | BS26: Yes | BT26: 8 | BU26: Pythagoras
A27: Geometry | BR27: Geometry | BS27: Yes | BT27: 8 | BU27: Pythagoras
A28: Geometry | BR28: Geometry | BS28: Yes | BT28: 8 | BU28: Pythagoras
A29: Geometry | AK29: =G!WH3 -> 2cm | BR29: Geometry | BS29: Yes | BT29: 8 | BU29: Pythagoras
A30: Geometry | BR30: Geometry | BS30: Yes | BT30: 8 | BU30: Pythagoras
A31: Geometry | BR31: Geometry | BS31: Yes | BT31: 8 | BU31: Pythagoras
A32: Data | B32: 5 | D32: =DT!YD6 -> Complete the table for Cumulative Frequency | M32: =DT!YE6 -> Age | W32: =DT!YJ6 -> Frequency | AG32: =DT!YO6 -> CF | AP32: =DT!YT6 ->  | BR32: Data | BS32: Yes | BT32: =RANDBETWEEN(1,8) -> 6 | BU32: Data Tables | BV32: NC | BW32: A
A33: Data | M33: =DT!YE7 ->  | W33: =DT!YJ7 ->  | AG33: =DT!YO7 ->  | AP33: =DT!YT7 ->  | BR33: Data | BS33: =BS32 -> Yes | BT33: 6 | BU33: Data Tables
A34: Data | M34: =DT!YE8 -> 0 ≤ A < 20 | W34: =DT!YJ8 -> 15 | AG34: =DT!YO8 ->  | AP34: =DT!YT8 ->  | BR34: Data | BS34: Yes | BT34: 6 | BU34: Data Tables
A35: Data | M35: =DT!YE9 -> 20 ≤ A < 40 | W35: =DT!YJ9 -> 18 | AG35: =DT!YO9 ->  | AP35: =DT!YT9 ->  | BR35: Data | BS35: Yes | BT35: 6 | BU35: Data Tables
A36: Data | M36: =DT!YE10 -> 40 ≤ A < 60 | W36: =DT!YJ10 -> 14 | AG36: =DT!YO10 ->  | AP36: =DT!YT10 ->  | BR36: Data | BS36: Yes | BT36: 6 | BU36: Data Tables
A37: Data | BR37: Data | BS37: Yes | BT37: 6 | BU37: Data Tables
A38: Number | B38: 8 | D38: Calculate | Q38: a) | S38: =N!XW7 -> 1 | U38: + | W38: =N!XY7 -> 5 | AB38: b) | AD38: =N!XW9 -> 1 | AF38: × | AH38: =N!XY9 -> 2 | AL38: c) | AN38: =N!XW11 -> 1 | AP38: ÷ | AR38: =N!XY11 -> 1 | AV38: d) | AX38: =N!XW13 -> 8 | AZ38: =N!XX13 -> − | BB38: =N!XY13 -> 2 | BR38: Number | BS38: Yes | BT38: =RANDBETWEEN(1,8) -> 5 | BU38: Fraction Arithmetic | BV38: NC | BW38: D
A39: Number | S39: =N!XW8 -> 2 | W39: =N!XY8 -> 7 | AD39: =N!XW10 -> 2 | AH39: =N!XY10 -> 3 | AN39: =N!XW12 -> 2 | AR39: =N!XY12 -> 4 | AX39: =N!XW14 -> 9 | BB39: =N!XY14 -> 6 | BR39: Number | BS39: =BS38 -> Yes | BT39: 5 | BU39: Fraction Arithmetic
A40: Number | BR40: Number | BS40: Yes | BT40: 5 | BU40: Fraction Arithmetic
A41: Number | B41: 13 | D41: Calculate the following; | V41: a) | X41: =N!XK7 -> -8 + -1 | AF41: b) | AG41: =N!XK8 -> 7 − -9 | AO41: c) | AP41: =N!XK9 -> -36 ÷ 6 | AX41: d) | AY41: =N!XK10 -> 3 × -2 | BR41: Number | BS41: Yes | BT41: =RANDBETWEEN(1,8) -> 3 | BU41: Arithmetic - negative numbers | BV41: NC | BW41: E-G
A42: Number | BR42: Number | BS42: =BS41 -> Yes | BT42: 3 | BU42: Arithmetic - negative numbers
BS43: Yes | BT43: 3 | BU43: Arithmetic - negative numbers

Sheet A (hidden)
QR1: Solving, brackets on one side | RA1: Quadratic Expansion | RE1: Solving, two step | RL1: Solving, unknowns on both sides | RV1: Quadratic Factorising | SI1: Completing the square | SN1: Factorising, one bracket | SU1: Expand and Simplify | TA1: Solving, one step | TE1: Sequence, nth term | TH1: Numbers for Indices | TL1: Simultaneous equations | TP1: Indices Calculations | UA1: Linear Expansion | UC1: Factorising Quadratics ++ | UV1: Substitute into quadratic equations | VI1: Linear Expansion | VL1: Solving Inequalities, two step | VS1: Direct Proportion | WB1: Simultaneous Equations - same coefficients | WQ1: Simultaneous Equations - different coefficients | XG1: Trial and Improvement | XS1: Quadratic Formula | XX1: Agebraic Fractions
TM2: =VLOOKUP(TL25,TL5:TN24,2) -> 4a + 3b = 17 | TS2: =RANDBETWEEN(2,9)*TS3 -> 6 | TT2: a | TU2: =VLOOKUP(TR27,$TP$5:$TQ$21,2) -> 9 | TV2: b | TW2: =VLOOKUP(TT27,$TP$5:$TQ$21,2) -> 6 | UB2: =VLOOKUP(UA36,UA5:UB34,2) -> 5(c + 4) | VA2: y = x2 | VB2: =UZ20 -> − x − 6 | VS2: A is directly proportional to B | WD2: =WC35 -> 3a + 3b = 15 | WS2: =WR35 -> a + 3b = 7 | XG2: x3 | XH2: =XI9 -> − | XI2: =XK12 -> 4 | XJ2: =XL12 -> x | XK2: = | XL2: =ROUND(XK9,0) -> 40 | XO2: =ROUNDDOWN(XI36,0) -> 3 | XQ2: =ROUNDUP(XI36,0) -> 4 | XY2: =RANDBETWEEN(1,4) -> 3 | YA2: + | YB2: =RANDBETWEEN(1,4) -> 3
QS3: =VLOOKUP(QW33,QQ33:QR34,2) -> 3( 2b + 3) = 57 | RB3: =CONCATENATE("(","r",RB8,RANDBETWEEN(2,9),")(","r",RB9,RANDBETWEEN(2,9),")") -> (r + 8)(r + 7) | RF3: =RF13 -> 3b + 8 = 29 | RM3: =RM30 -> 6a − 5 = 2a − 9 | SA3: d2 | SB3: =RZ20 -> + 2d − 3 | SJ3: a2 | SK3: =SJ17 -> − 6a − 20 | SO3: =CONCATENATE(SO18,SP18,SQ18,SR18) -> 6a + 21 | SV3: =SU5 -> 2(3d − 5) − 2(7d − 4) | TA3: =TA5 -> 3a = 6 | TE3: =VLOOKUP(TG18,TD18:TE19,2) -> 9, 17, 25, 33, 41... | TM3: =VLOOKUP(TL25,TL5:TN24,3) -> 3a − b = 3 | TS3: =RANDBETWEEN(2,9) -> 2 | TT3: a | TU3: =VLOOKUP(TX28,$TP$5:$TQ$21,2) -> 7 | TV3: b | TW3: =VLOOKUP(TZ28,$TP$5:$TQ$21,2) -> -5 | UE3: m2 | UG3: =UF12 -> + 5m + 4 | UX3: x | UY3: -2 | UZ3: -1 | VA3: 0 | VB3: 1 | VC3: 2 | VD3: 3 | VE3: 4 | VJ3: =VLOOKUP(VJ27,VI5:VJ25,2) -> 2(2a - 1) | VM3: =VM13 -> 2b − 2 < 6 | VS3: when A = | VV3: =VU8 -> 200 | VX3: , B = | VY3: =VX8 -> 4 | WD3: =WC36 -> 5a + 3b = 23 | WS3: =WR36 -> 5a − 6b = 14 | XT3: x2 | XU3: =CONCATENATE(XT9,RANDBETWEEN(2,5),"x"," ",XT6," ",RANDBETWEEN(3,5)," = 0") -> −2x − 4 = 0 | XY3: =XZ27 -> x + 1 | YB3: =XZ28 -> x − 1
SO4: =SO22 -> 20 | SP4: m2 | SQ4: =CONCATENATE(SQ22,SR22,SS22) -> + 40 | TA4: =TA8 -> b + 6 = 5 | TP4: =RANDBETWEEN(2,9) -> 8 | TQ4: a | TR4: =VLOOKUP(TR22,$TP$5:$TQ$21,2) -> 2 | TS4: b | TT4: =VLOOKUP(TT22,$TP$5:$TQ$21,2) -> 5 | TU4: × | TV4: =RANDBETWEEN(2,9) -> 3 | TW4: a | TX4: =VLOOKUP(TX22,$TP$5:$TQ$21,2) -> -1 | TY4: b | TZ4: =VLOOKUP(TZ22,$TP$5:$TQ$21,2) -> 2 | UX4: y | UZ4: =(UZ3+$UZ$6)*(UZ3-$VD$6) -> -4 | VC4: =(VC3+$UZ$6)*(VC3-$VD$6) -> -4 | VD4: =(VD3+$UZ$6)*(VD3-$VD$6) -> 0 | VS4: a) find an equation connecting A and B
QJ5: =QR1 -> Solving, brackets on one side | QK5: J | QL5: =QS3 -> 3( 2b + 3) = 57 | QQ5: 1 | QR5: -5 | RA5: 1 | RB5: + | RG5: b | RJ5: = | RK5: =RANDBETWEEN(1,9) -> 7 | RM5: a | RP5: = | RT5: =RANDBETWEEN(1,4) -> 1 | SI5: 1 | SJ5: + | SK5: a | SN5: =RANDBETWEEN(2,9) -> 3 | SO5: ( | SP5: =RANDBETWEEN(1,9) -> 2 | SQ5: a | SR5: =SR15 -> + | SS5: =RANDBETWEEN(1,9) -> 7 | ST5: ) | SU5: =CONCATENATE(RANDBETWEEN(2,4),"(",RANDBETWEEN(2,9),"d ", SX6," ",RANDBETWEEN(2,9),") ",SX7," ",RANDBETWEEN(2,4),"(", RANDBETWEEN(2,9),"d ",SX8," ",RANDBETWEEN(2,9),")") -> 2(3d − 5) − 2(7d − 4) | TA5: =CONCATENATE(TA6,"a"," = ",TA6*RANDBETWEEN(2,9)) -> 3a = 6 | TD5: =RANDBETWEEN(1,9) -> 8 | TE5: n | TF5: + | TG5: =RANDBETWEEN(1,9) -> 1 | TH5: 1 | TI5: -9 | TJ5: =RANDBETWEEN(1,17) -> 6 | TK5: =VLOOKUP(TJ5,TH5:TI21,2) -> -4 | TL5: 1 | TM5: 3a + 4b = 20 | TN5: 2a + b = 10 | TP5: 1 | TQ5: -9 | UA5: 1 | UB5: 3(2a + 3) | VI5: 1 | VJ5: 2a + 3 | VN5: b | VQ5: = | VR5: =RANDBETWEEN(1,9) -> 4 | VS5: b) find B when A = | VW5: =VU21 -> 100
QJ6: =RA1 -> Quadratic Expansion | QK6: S | QL6: =RB3 -> (r + 8)(r + 7) | QQ6: 2 | QR6: -4 | RA6: 2 | RB6: − | RF6: =RANDBETWEEN(2,9) -> 3 | RG6: b | RJ6: = | RK6: =RK5*RF6 -> 21 | RL6: =RANDBETWEEN(6,9) -> 7 | RM6: a | RP6: = | RT6: =RT5*RL6 -> 7 | RW6: ( | RX6: d | RY6: =RZ15 -> − | RZ6: =RANDBETWEEN(1,9) -> 1 | SA6: )( | SB6: d | SC6: =RZ16 -> + | SD6: =RANDBETWEEN(1,9) -> 3 | SE6: ) | SI6: 2 | SJ6: − | SK6: a2 | SL6: =CONCATENATE(SJ7,RANDBETWEEN(1,5)*2,"a",SJ8,RANDBETWEEN(1,20)) -> − 4a − 1 | SU6: 1 | SV6: + | SW6: =RANDBETWEEN(1,2) -> 2 | SX6: =VLOOKUP(SW6,SU6:SV7,2) -> − | TA6: =RANDBETWEEN(2,9) -> 3 | TD6: 1 | TE6: =$TD$5*TD6+$TG$5 -> 9 | TH6: 2 | TI6: -8 | TJ6: 14 | TK6: =VLOOKUP(TJ6,TH5:TI21,2) -> 6 | TL6: 2 | TM6: 5a + 2b = 16 | TN6: 4a + b = 11 | TP6: 2 | TQ6: -8 | UA6: 2 | UB6: 4(4b - 1) | UM6: ( | UN6: x | UO6: + | UP6: =RANDBETWEEN(1,3) -> 2 | UQ6: )( | UR6: x | UT6: =RANDBETWEEN(1,5) -> 5 | UU6: ) | UW6: ( | UX6: x | UY6: + | UZ6: =RANDBETWEEN(1,3) -> 2 | VA6: )( | VB6: x | VC6: − | VD6: =RANDBETWEEN(1,3) -> 3 | VE6: ) | VI6: 2 | VJ6: 3a + 5 | VM6: =RANDBETWEEN(2,9) -> 2 | VN6: b | VQ6: = | VR6: =VR5*VM6 -> 8 | VU6: a | VX6: b | VZ6: k | WC6: =RANDBETWEEN(1,3) -> 3 | WD6: a | WE6: + | WF6: =RANDBETWEEN(1,3) -> 3 | WG6: b | WH6: = | WI6: =WC6*$WD$25+WF6*$WG$25 -> 15 | WK6: =WF6+WC6 -> 6 | WR6: =RANDBETWEEN(1,3) -> 1 | WS6: a | WT6: + | WU6: =RANDBETWEEN(1,3) -> 3 | WV6: b | WW6: = | WX6: =WR6*$WD$25+WU6*$WG$25 -> 7 | WZ6: =WU6+WR6 -> 4 | XH6: 1 | XI6: − | XK6: =XN11-XN12 -> 39.672 | XS6: 1 | XT6: − | XY6: 1 | XZ6: =CONCATENATE("x"," + ",RANDBETWEEN(1,4)) -> x + 1
QJ7: =RE1 -> Solving, two step | QK7: W | QL7: =RF3 -> 3b + 8 = 29 | QQ7: 3 | QR7: -3 | RF7: =RF6 -> 3 | RG7: b | RH7: + | RI7: =RANDBETWEEN(1,9) -> 8 | RJ7: = | RK7: =RK6+RI7 -> 29 | RL7: =RL6 -> 7 | RM7: a | RN7: + | RO7: =RANDBETWEEN(1,9) -> 3 | RP7: = | RT7: =RT6+RO7 -> 10 | RY7: =IF(RY15=2,-1,1) -> -1 | SC7: =IF(RY16=1,1,-1) -> 1 | SI7: =RANDBETWEEN(1,2) -> 2 | SJ7: =VLOOKUP(SI7,SI5:SJ6,2) -> − | SO7: =SN5*SP5 -> 6 | SP7: =SQ5 -> a | SQ7: =SR5 -> + | SR7: =SS5*SN5 -> 21 | SU7: 2 | SV7: − | SW7: =RANDBETWEEN(1,2) -> 2 | SX7: =VLOOKUP(SW7,SU6:SV7,2) -> − | TD7: 2 | TE7: =$TD$5*TD7+$TG$5 -> 17 | TH7: 3 | TI7: -7 | TJ7: 11 | TK7: =VLOOKUP(TJ7,$TH$5:$TI$21,2) -> 3 | TL7: 3 | TM7: 3a + 2b = 16 | TN7: 2a + b = 9 | TP7: 3 | TQ7: -7 | UA7: 3 | UB7: 5(c + 4) | UY7: 1 | VC7: -1 | VI7: 3 | VJ7: 4a - 1 | VM7: =VM6 -> 2 | VN7: b | VO7: + | VP7: =RANDBETWEEN(1,9) -> 9 | VQ7: > | VR7: =VR6+VP7 -> 17 | WC7: =WC6 -> 3 | WD7: a | WE7: − | WF7: =RANDBETWEEN(WF6+1,6) -> 4 | WG7: b | WH7: = | WI7: =WC7*$WD$25-WF7*$WG$25 -> 8 | WK7: =WF7+WC7 -> 7 | WR7: =RANDBETWEEN(WR6+1,6) -> 5 | WS7: a | WT7: − | WU7: =RANDBETWEEN(WU6+1,6) -> 6 | WV7: b | WW7: = | WX7: =WR7*$WD$25-WU7*$WG$25 -> 14 | WZ7: =WU7+WR7 -> 11 | XH7: 2 | XI7: + | XK7: =XN11+XN12 -> 70.072 | XS7: 2 | XT7: + | XY7: 2 | XZ7: =CONCATENATE("x"," − ",RANDBETWEEN(1,4)) -> x − 1
QJ8: =RL1 -> Solving, unknowns on both sides | QK8: AD | QL8: =RM3 -> 6a − 5 = 2a − 9 | QQ8: 4 | QR8: -2 | RA8: =RANDBETWEEN(1,2) -> 1 | RB8: =VLOOKUP(RA8,RA5:RB6,2) -> + | RF8: =RF7 -> 3 | RG8: b | RH8: − | RI8: =RANDBETWEEN(1,9) -> 6 | RJ8: = | RK8: =RK6-RI8 -> 15 | RL8: =RL7+RQ8 -> 9 | RM8: a | RN8: + | RO8: =RO7 -> 3 | RP8: = | RQ8: =RANDBETWEEN(2,5) -> 2 | RR8: a | RS8: + | RT8: =RT7 -> 10 | SI8: =RANDBETWEEN(1,2) -> 2 | SJ8: − | SW8: =RANDBETWEEN(1,2) -> 2 | SX8: =VLOOKUP(SW8,SU6:SV7,2) -> − | TA8: =CONCATENATE("b"," ",TC9," ",RANDBETWEEN(2,9)," = ",RANDBETWEEN(2,9)) -> b + 6 = 5 | TD8: 3 | TE8: =$TD$5*TD8+$TG$5 -> 25 | TH8: 4 | TI8: -6 | TJ8: 3 | TK8: =VLOOKUP(TJ8,$TH$5:$TI$21,2) -> -7 | TL8: 4 | TM8: 5a + 4b = 23 | TN8: 3a + b = 11 | TP8: 4 | TQ8: -6 | UA8: 4 | UB8: 6(2d - 9) | UN8: x2 | UO8: =CONCATENATE(UP6-UT6,"x","-",UP6*UT6) -> -3x-10 | VI8: 4 | VJ8: 5a + 7 | VM8: =VM7 -> 2 | VN8: b | VO8: − | VP8: =RANDBETWEEN(1,9) -> 2 | VQ8: < | VR8: =VR6-VP8 -> 6 | VU8: =VX8*VZ8 -> 200 | VX8: =RANDBETWEEN(2,10) -> 4 | VZ8: =VU17 -> 50 | WC8: =RANDBETWEEN(1,3) -> 3 | WD8: a | WE8: + | WF8: =RANDBETWEEN(1,3) -> 3 | WG8: b | WH8: = | WI8: =WC8*$WD$25+WF8*$WG$25 -> 15 | WK8: 6 | WR8: =RANDBETWEEN(1,3) -> 3 | WS8: a | WT8: + | WU8: =RANDBETWEEN(1,3) -> 1 | WV8: b | WW8: = | WX8: =WR8*$WD$25+WU8*$WG$25 -> 13 | WZ8: 4 | XY8: 3 | XZ8: =CONCATENATE(RANDBETWEEN(2,4),"x"," − ",RANDBETWEEN(1,4)) -> 3x − 4
QJ9: =RV1 -> Quadratic Factorising | QK9: AS | QL9: d2 | QM9: =SB3 -> + 2d − 3 | QQ9: 5 | QR9: -1 | QU9: =RANDBETWEEN(1,18) -> 17 | QW9: =VLOOKUP(QU9,QQ5:QR22,2) -> 8 | RA9: =RANDBETWEEN(1,2) -> 1 | RB9: =VLOOKUP(RA9,RA5:RB6,2) -> + | RX9: d2 | RY9: =IF(RZ9>0,"+","−") -> + | RZ9: =RZ6*RY7+SD6*SC7 -> 2 | SA9: d | SB9: =IF(SC9>0,"+","−") -> − | SC9: =RZ6*RY7*SC7*SD6 -> -3 | SI9: 1 | SJ9: + | SK9: a | SL9: =RANDBETWEEN(1,20) -> 20 | SO9: =CONCATENATE(SO7,SP7," ",SQ7," ",SR7,) -> 6a + 21 | SZ9: 1 | TA9: + | TB9: =RANDBETWEEN(1,2) -> 1 | TC9: =VLOOKUP(TB9,SZ9:TA10,2) -> + | TD9: 4 | TE9: =$TD$5*TD9+$TG$5 -> 33 | TH9: 5 | TI9: -5 | TJ9: 12 | TK9: =VLOOKUP(TJ9,$TH$5:$TI$21,2) -> 4 | TL9: 5 | TM9: 3a + b = 13 | TN9: 5a − 2b = 7 | TP9: 5 | TQ9: -5 | UA9: 5 | UB9: 4(3e + 2) | UX9: d2 | UY9: =IF(UZ9>0,"+","−") -> − | UZ9: =UZ6*UY7+VD6*VC7 -> -1 | VA9: x | VB9: =IF(VC9>0," + "," − ") -> − | VC9: =UZ6*UY7*VC7*VD6 -> -6 | VI9: 5 | VJ9: 6a - 5 | WC9: =RANDBETWEEN(WC8+1,6) -> 5 | WD9: a | WE9: + | WF9: =WF8 -> 3 | WG9: b | WH9: = | WI9: =WC9*$WD$25+WF9*$WG$25 -> 23 | WK9: 8 | WR9: =RANDBETWEEN(WR8+1,6) -> 4 | WS9: a | WT9: + | WU9: =RANDBETWEEN(WU8+1,6) -> 4 | WV9: b | WW9: = | WX9: =WR9*$WD$25+WU9*$WG$25 -> 20 | WZ9: 8 | XH9: =RANDBETWEEN(1,2) -> 1 | XI9: =VLOOKUP(XH9,XH6:XI7,2) -> − | XK9: =VLOOKUP(XH9,XH6:XL7,4) -> 39.672 | XS9: =RANDBETWEEN(1,2) -> 1 | XT9: =VLOOKUP(XS9,XS6:XT7,2) -> − | XY9: 4 | XZ9: =CONCATENATE(RANDBETWEEN(2,4),"x"," + ",RANDBETWEEN(1,4)) -> 4x + 3
QJ10: =SI1 -> Completing the square | QK10: BB | QL10: a2 | QM10: =SK3 -> − 6a − 20 | QQ10: 6 | QR10: 1 | RE10: 1 | RF10: =CONCATENATE(RF7,RG7," ", RH7," ",RI7," ", RJ7," ",RK7) -> 3b + 8 = 29 | RM10: a | RP10: = | RT10: =RANDBETWEEN(1,4) -> 2 | SI10: 2 | SJ10: − | SK10: a2 | SL10: =CONCATENATE(SJ11,SK12*2,"a",SJ12,SL9) -> − 6a − 20 | SZ10: 2 | TA10: − | TD10: 5 | TE10: =$TD$5*TD10+$TG$5 -> 41 | TH10: 6 | TI10: -4 | TJ10: 6 | TK10: =VLOOKUP(TJ10,$TH$5:$TI$21,2) -> -4 | TL10: 6 | TM10: 2a + b = 11 | TN10: 3a − 2b = 6 | TP10: 6 | TQ10: -4 | UA10: 6 | UB10: 7(2f - 3) | UC10: ( | UD10: m | UE10: + | UF10: =RANDBETWEEN(1,8) -> 1 | UG10: )( | UH10: m | UI10: + | UJ10: =RANDBETWEEN(1,8) -> 4 | UK10: ) | UN10: =IF(UP6<UT6,"−","+") -> − | VI10: 6 | VJ10: 7a + 2 | VL10: 1 | VM10: =CONCATENATE(VM7,VN7," ", VO7," ",VP7," ", VQ7," ",VR7) -> 2b + 9 > 17 | VT10: 1 | VU10: 0.5 | XY10: 5 | XZ10: =CONCATENATE("x"," + ",RANDBETWEEN(1,4)) -> x + 3
QJ11: =SN1 -> Factorising, one bracket | QK11: BF | QL11: =SO3 -> 6a + 21 | QQ11: 7 | QR11: 2 | RE11: 2 | RF11: =CONCATENATE(RF8,RG8," ", RH8," ",RI8," ", RJ8," ",RK8) -> 3b − 6 = 15 | RL11: =RANDBETWEEN(6,9) -> 7 | RM11: a | RP11: = | RT11: =RT10*RL11 -> 14 | RX11: d2 | RY11: =RY9 -> + | RZ11: =SQRT(RZ9^2) -> 2 | SA11: d | SB11: =SB9 -> − | SC11: =SQRT($SC$9^2) -> 3 | SF11: d2 | SG11: =CONCATENATE(" ",RY11," ",RZ11,SA11," ",SB11," ",SC11) -> + 2d − 3 | SI11: =RANDBETWEEN(1,2) -> 2 | SJ11: =VLOOKUP(SI11,SI9:SJ10,2) -> − | SL11: =IF(SJ12=SJ6,SL9*-1,SL9) -> -20 | SN11: =RANDBETWEEN(2,5) -> 5 | SO11: ( | SP11: =RANDBETWEEN(1,9) -> 4 | SQ11: a | SR11: =SR15 -> + | SS11: =RANDBETWEEN(1,9) -> 8 | ST11: ) | TH11: 7 | TI11: -3 | TL11: 7 | TM11: a + b = 7 | TN11: 11a − 4b = 2 | TP11: 7 | TQ11: -3 | UA11: 7 | UB11: 9(3g + 4) | UX11: x2 | UY11: =UY9 -> − | UZ11: =SQRT(UZ9^2) -> 1 | VA11: x | VB11: =VB9 -> − | VC11: =SQRT($VC$9^2) -> 6 | VF11: x2 | VG11: =CONCATENATE(" ",UY11," ",UZ11,VA11," ",VB11," ",VC11) -> − 1x − 6 | VI11: 7 | VJ11: 2a - 5 | VL11: 2 | VM11: =CONCATENATE(VM8,VN8," ", VO8," ",VP8," ", VQ8," ",VR8) -> 2b − 2 < 6 | VT11: 2 | VU11: 0.8 | XH11: 1 | XI11: 2.2 | XL11: x3 | XM11: = | XN11: =XI36^3 -> 54.872 | XY11: 6 | XZ11: =CONCATENATE("x"," − ",RANDBETWEEN(1,4)) -> x − 4
QJ12: =SN1 -> Factorising, one bracket | QK12: BH | QL12: =SO4 -> 20 | QM12: f2 | QN12: =SQ4 -> + 40 | QQ12: 8 | QR12: 3 | RL12: =RL11 -> 7 | RM12: a | RN12: − | RO12: =RANDBETWEEN(1,9) -> 7 | RP12: = | RT12: =RT11-RO12 -> 7 | RV12: If b=0 | RX12: d2 | RY12: =SB11 -> − | RZ12: =SC11 -> 3 | SF12: d2 | SG12: =CONCATENATE(" ",RY12," ",RZ12,SA12," ",SB12," ",SC12) -> − 3 | SI12: =RANDBETWEEN(1,2) -> 2 | SJ12: − | SK12: =RANDBETWEEN(1,8) -> 3 | SL12: =SK12^2-SL11 -> 29 | TD12: 1 | TE12: =$TD$5*TD12-$TG$5 -> 7 | TH12: 8 | TI12: -2 | TL12: 8 | TM12: 6a + b = 20 | TN12: 4a − 3b = 6 | TP12: 8 | TQ12: -2 | UA12: 8 | UB12: 8(4h - 5) | UE12: m2 | UF12: =CONCATENATE("+ ",UF10+UJ10,"m"," + ",UF10*UJ10) -> + 5m + 4 | UV12: If b=0 | UX12: x2 | UY12: =VB11 -> − | UZ12: =VC11 -> 6 | VF12: x2 | VG12: =CONCATENATE(" ",UY12," ",UZ12,VA12," ",VB12," ",VC12) -> − 6 | VI12: 8 | VJ12: 3a - 2 | VT12: 3 | VU12: 5 | XH12: 2 | XI12: 2.3 | XK12: =RANDBETWEEN(2,4) -> 4 | XL12: x | XM12: = | XN12: =XI36*XK12 -> 15.2 | XY12: 7 | XZ12: =CONCATENATE(RANDBETWEEN(2,4),"x"," − ",RANDBETWEEN(1,4)) -> 2x − 2
QJ13: =SU1 -> Expand and Simplify | QK13: BM | QL13: =SV3 -> 2(3d − 5) − 2(7d − 4) | QQ13: 9 | QR13: 4 | RE13: =RANDBETWEEN(1,2) -> 1 | RF13: =VLOOKUP(RE13,RE10:RF11,2) -> 3b + 8 = 29 | RL13: =RL12+RQ13 -> 12 | RM13: a | RN13: − | RO13: =RO12 -> 7 | RP13: = | RQ13: =RANDBETWEEN(2,5) -> 5 | RR13: a | RS13: + | RT13: =RT12 -> 7 | RV13: If b=1 | RX13: d2 | RY13: =RY11 -> + | RZ13: d | SA13: =SB11 -> − | SB13: =SC11 -> 3 | SF13: d2 | SG13: =CONCATENATE(" ",RY13," ",RZ13,SA13," ",SB13," ",SC13) -> + d− 3 | SO13: =SN11*SP11 -> 20 | SP13: a2 | SQ13: =SR11 -> + | SR13: =SS11*SN11 -> 40 | TD13: 2 | TE13: =$TD$5*TD13-$TG$5 -> 15 | TH13: 9 | TI13: -1 | TL13: 9 | TM13: 5a + 3b = 14 | TN13: a + 2b = 7 | TP13: 9 | TQ13: -1 | UA13: 9 | UB13: 6(3j + 7) | UV13: If b=1 | UX13: x2 | UY13: =UY11 -> − | UZ13: x | VA13: =VB11 -> − | VB13: =VC11 -> 6 | VF13: x2 | VG13: =CONCATENATE(" ",UY13," ",UZ13,VA13," ",VB13," ",VC13) -> − x − 6 | VI13: 9 | VJ13: 5(2a + 1) | VL13: =RANDBETWEEN(1,2) -> 2 | VM13: =VLOOKUP(VL13,VL10:VM11,2) -> 2b − 2 < 6 | VT13: 4 | VU13: 10 | XH13: 3 | XI13: 2.4 | XY13: 8 | XZ13: =CONCATENATE(RANDBETWEEN(2,4),"x"," + ",RANDBETWEEN(1,4)) -> 3x + 1
QJ14: =TA1 -> Solving, one step | QK14: BR | QL14: =TA3 -> 3a = 6 | QQ14: 10 | QR14: 5 | SI14: 1 | SJ14: =SL6 -> − 4a − 1 | TD14: 3 | TE14: =$TD$5*TD14-$TG$5 -> 23 | TH14: 10 | TI14: 2 | TL14: 10 | TM14: 3a + 4b = 24 | TN14: a + 5b = 19 | TP14: 10 | TQ14: 2 | UA14: 10 | UB14: 3(7k - 5) | UC14: 1 | UD14: + | VI14: 10 | VJ14: 6(a + 2) | VT14: 5 | VU14: 20 | XH14: 4 | XI14: 2.6 | XY14: 9 | XZ14: =CONCATENATE("x"," + ",RANDBETWEEN(1,4)) -> x + 2
QJ15: =TA1 -> Solving, one step | QK15: BR | QL15: =TA4 -> b + 6 = 5 | QQ15: 11 | QR15: 2 | RM15: a | RP15: = | RT15: =RANDBETWEEN(1,4) -> 1 | RV15: 1 | RW15: + | RY15: =RANDBETWEEN(1,2) -> 2 | RZ15: =VLOOKUP(RY15,RV15:RW18,2) -> − | SI15: 2 | SJ15: =SL10 -> − 6a − 20 | SN15: 1 | SO15: + | SQ15: =RANDBETWEEN(1,2) -> 1 | SR15: =VLOOKUP(SQ15,SN15:SO16,2) -> + | TD15: 4 | TE15: =$TD$5*TD15-$TG$5 -> 31 | TH15: 11 | TI15: 3 | TL15: 11 | TM15: 2a + 5b = 16 | TN15: a + 3b = 9 | TP15: 11 | TQ15: 3 | UA15: 11 | UB15: 7(2m + 3) | UC15: 2 | UD15: + | UV15: 1 | UW15: + | UY15: =RANDBETWEEN(1,2) -> 1 | UZ15: =VLOOKUP(UY15,UV15:UW18,2) -> + | VI15: 11 | VJ15: 2(3a - 1) | VT15: 6 | VU15: 50 | WC15: a | WF15: b | WR15: a | WU15: b | XH15: 5 | XI15: 2.7 | XY15: 10 | XZ15: =CONCATENATE("x"," − ",RANDBETWEEN(1,4)) -> x − 4
QJ16: Midpoints | QL16: =CONCATENATE("( ",RANDBETWEEN(-9,9),", ",RANDBETWEEN(-9,9),", ",RANDBETWEEN(-9,9),")") -> ( 9, -6, -4) | QO16: =CONCATENATE("( ",RANDBETWEEN(-9,9),", ",RANDBETWEEN(-9,9),", ",RANDBETWEEN(-9,9),")") -> ( -4, -7, -3) | QQ16: 12 | QR16: 3 | RL16: =RANDBETWEEN(2,5) -> 3 | RM16: a | RP16: = | RT16: =RT15*RL16 -> 3 | RV16: 2 | RW16: − | RY16: =RANDBETWEEN(1,2) -> 1 | RZ16: =VLOOKUP(RY16,RV15:RW18,2) -> + | SN16: 2 | SO16: − | TD16: 5 | TE16: =$TD$5*TD16-$TG$5 -> 39 | TH16: 12 | TI16: 4 | TL16: 12 | TM16: 3a + 2b = 17 | TN16: a + 3b = 15 | TP16: 12 | TQ16: 4 | UA16: 12 | UB16: 3(5 - 3w) | UC16: 3 | UD16: + | UV16: 2 | UW16: − | UY16: =RANDBETWEEN(1,2) -> 1 | UZ16: =VLOOKUP(UY16,UV15:UW18,2) -> + | VI16: 12 | VJ16: 3(4a + 5) | VM16: =RANDBETWEEN(-3,-1) -> -1 | VN16: =VN21 -> < | VO16: x | VP16: =VP21 -> ≤ | VQ16: =VM16+5 -> 4 | WC16: 1 | WD16: -2 | WF16: 1 | WG16: -2 | WR16: 1 | WS16: -2 | WU16: 1 | WV16: -2 | XH16: 6 | XI16: 2.8 | XY16: 11 | XZ16: =CONCATENATE(RANDBETWEEN(2,4),"x"," − ",RANDBETWEEN(1,4)) -> 4x − 1
QJ17: Sequence, nth term | QK17: BV | QL17: =TE3 -> 9, 17, 25, 33, 41... | QQ17: 13 | QR17: 4 | RL17: =RL16 -> 3 | RM17: a | RN17: + | RO17: =RANDBETWEEN(1,9) -> 3 | RP17: = | RT17: =RT16+RO17 -> 6 | SI17: =RANDBETWEEN(1,2) -> 2 | SJ17: =VLOOKUP(SI17,SI14:SJ15,2) -> − 6a − 20 | TH17: 13 | TI17: 5 | TL17: 13 | TM17: a + 4b = 6 | TN17: −4a + 9b = 1 | TP17: 13 | TQ17: 5 | UA17: 13 | UB17: 5(4 - 3n) | UC17: 4 | UD17: + | VI17: 13 | VJ17: 2(2a - 1) | VT17: =RANDBETWEEN(1,6) -> 6 | VU17: =VLOOKUP(VT17,VT10:VU15,2) -> 50 | WC17: 2 | WD17: -1 | WF17: 2 | WG17: -1 | WR17: 2 | WS17: -1 | WU17: 2 | WV17: -1 | XH17: 7 | XI17: =XI11+1 -> 3.2 | XY17: 12 | XZ17: =CONCATENATE(RANDBETWEEN(2,4),"x"," + ",RANDBETWEEN(1,4)) -> 3x + 4
QJ18: Index laws × | QK18: CB | QL18: a | QM18: =TK5 -> -4 | QO18: a | QP18: =TK6 -> 6 | QQ18: 14 | QR18: 5 | RL18: =RL17+RQ18 -> 5 | RM18: a | RN18: + | RO18: =RO17 -> 3 | RP18: = | RQ18: =RANDBETWEEN(2,5) -> 2 | RR18: a | RS18: − | RT18: =RT17 -> 6 | RZ18: =IF(RZ11=0,SG12,SG11) -> + 2d − 3 | SO18: =SO7 -> 6 | SP18: =SP7 -> a | SQ18: =SQ7 -> + | SR18: =SR7 -> 21 | TD18: 1 | TE18: =CONCATENATE(TE6,", ",TE7,", ",TE8,", ",TE9,", ",TE10,"...") -> 9, 17, 25, 33, 41... | TG18: =RANDBETWEEN(1,2) -> 1 | TH18: 14 | TI18: 6 | TL18: 14 | TM18: a + 3b = 10 | TN18: −2a + 5b = 2 | TP18: 14 | TQ18: 6 | UA18: 14 | UB18: 8(3 - 7p) | UC18: 5 | UD18: + | UZ18: =IF(UZ11=0,VG12,VG11) -> − 1x − 6 | VI18: 14 | VJ18: 11 - 2a | VM18: 1 | VN18: ≤ | VP18: < | WC18: 3 | WD18: 1 | WF18: 3 | WG18: 1 | WR18: 3 | WS18: 1 | WU18: 3 | WV18: 1 | XH18: 8 | XI18: 3.3 | XY18: 13 | XZ18: =CONCATENATE("x"," + ",RANDBETWEEN(1,4)) -> x + 2
QN19: × | QQ19: 15 | QR19: 6 | SN19: 1 | SO19: =SO13 -> 20 | SP19: =SP13 -> a2 | SQ19: =SQ13 -> + | SR19: =SR13 -> 40 | TD19: 2 | TE19: =CONCATENATE(TE12,", ",TE13,", ",TE14,", ",TE15,", ",TE16,"...") -> 7, 15, 23, 31, 39... | TH19: 15 | TI19: 7 | TL19: 15 | TM19: a + 5b = 16 | TN19: −2a + 3b = 7 | TP19: 15 | TQ19: 7 | UA19: 15 | UB19: 3(2 - 3r) | UC19: 6 | UD19: − | VI19: 15 | VJ19: 9 + 3a | VM19: 2 | VN19: < | VP19: ≤ | VU19: a | VX19: b | VZ19: k | WC19: 4 | WD19: 2 | WF19: 4 | WG19: 2 | WR19: 4 | WS19: 2 | WU19: 4 | WV19: 2 | XH19: 9 | XI19: 3.4 | XY19: 14 | XZ19: =CONCATENATE("x"," − ",RANDBETWEEN(1,4)) -> x − 3
QJ20: Index laws ÷ | QK20: CB | QL20: a | QM20: =TK7 -> 3 | QO20: a | QP20: =TK8 -> -7 | QQ20: 16 | QR20: 7 | RM20: a | RP20: = | RT20: =RANDBETWEEN(1,4) -> 1 | RY20: d2 | RZ20: =IF(RZ11=1,SG13,RZ18) -> + 2d − 3 | SN20: 2 | SO20: =SO19 -> 20 | SP20: =SP19 -> a2 | SQ20: =SQ19 -> + | SR20: =SR19 -> 40 | SS20: a | TH20: 16 | TI20: 8 | TL20: 16 | TM20: a + 4b = 22 | TN20: −4a + 5b = 17 | TP20: 16 | TQ20: 8 | UA20: 16 | UB20: 7(6 - 5s) | UC20: 7 | UD20: − | UY20: x2 | UZ20: =IF(UZ11=1,VG13,UZ18) -> − x − 6 | VI20: 16 | VJ20: 4 + 2a | WC20: 5 | WD20: 3 | WF20: 5 | WG20: 3 | WR20: 5 | WS20: 3 | WU20: 5 | WV20: 3 | XH20: 10 | XI20: 3.6 | XY20: 15 | XZ20: =CONCATENATE(RANDBETWEEN(2,4),"x"," − ",RANDBETWEEN(1,4)) -> 2x − 3
QN21: ÷ | QQ21: 17 | QR21: 8 | RL21: =RANDBETWEEN(2,5) -> 4 | RM21: a | RP21: = | RT21: =RT20*RL21 -> 4 | TH21: 17 | TI21: 9 | TL21: 17 | TM21: 3a + 2b = 13 | TN21: 2a − b = 4 | TP21: 17 | TQ21: 9 | UA21: 17 | UB21: 2(11 - 3t) | UC21: 8 | UD21: − | VI21: 17 | VJ21: 12 - 3a | VM21: =RANDBETWEEN(1,2) -> 2 | VN21: =VLOOKUP(VM21,VM18:VP19,2) -> < | VP21: =VLOOKUP(VM21,VM18:VP19,4) -> ≤ | VU21: =VX21*VZ21 -> 100 | VX21: =RANDBETWEEN(2,10) -> 5 | VZ21: =VU30 -> 20 | WC21: 6 | WD21: 4 | WF21: 6 | WG21: 4 | WR21: 6 | WS21: 4 | WU21: 6 | WV21: 4 | XH21: 11 | XI21: 3.7 | XY21: 16 | XZ21: =CONCATENATE(RANDBETWEEN(2,4),"x"," + ",RANDBETWEEN(1,4)) -> 3x + 2
QJ22: Index laws brackets CB | QK22: ( | QL22: a | QM22: =TK9 -> 4 | QN22: ) | QO22: =TK10 -> -4 | QQ22: 18 | QR22: 9 | RL22: =RL21 -> 4 | RM22: a | RN22: − | RO22: =RANDBETWEEN(5,9) -> 5 | RP22: = | RT22: =RT21+RO22 -> 9 | SN22: =RANDBETWEEN(1,2) -> 1 | SO22: =VLOOKUP($SN$22,$SN$19:$SS$20,2) -> 20 | SP22: =VLOOKUP($SN$22,$SN$19:$SS$20,3) -> a2 | SQ22: =VLOOKUP($SN$22,$SN$19:$SS$20,4) -> + | SR22: =VLOOKUP($SN$22,$SN$19:$SS$20,5) -> 40 | SS22: =VLOOKUP($SN$22,$SN$19:$SS$20,6) ->  | TL22: 18 | TM22: 4a + 3b = 17 | TN22: 3a − b = 3 | TR22: =RANDBETWEEN(1,17) -> 10 | TT22: =RANDBETWEEN(1,17) -> 13 | TX22: =RANDBETWEEN(1,17) -> 9 | TZ22: =RANDBETWEEN(1,17) -> 10 | UA22: 18 | UB22: 3(14 - 7u) | UC22: 9 | UD22: − | VI22: 18 | VJ22: 15 - 4a | WC22: 7 | WD22: 5 | WF22: 7 | WG22: 5 | WR22: 7 | WS22: 5 | WU22: 7 | WV22: 5 | XH22: 12 | XI22: 3.8 | XY22: 17 | XZ22: =CONCATENATE("x"," + ",RANDBETWEEN(1,4)) -> x + 1
RL23: =RL22+RQ23 -> 6 | RM23: a | RN23: − | RO23: =RO22 -> 5 | RP23: = | RQ23: =RANDBETWEEN(2,5) -> 2 | RR23: a | RS23: − | RT23: =RT22 -> 9 | TL23: 19 | TM23: 3a + 2b = 16 | TN23: a − b = 2 | UA23: 19 | UB23: 9(3 - 4v) | UC23: 10 | UD23: − | VI23: 19 | VJ23: 6a + 8 | VM23: =CONCATENATE(VM16," ",VN16," ",VO16," ",VP16," ",VQ16) -> -1 < x ≤ 4 | VT23: 1 | VU23: 0.5 | WC23: 8 | WD23: 6 | WF23: 8 | WG23: 6 | WR23: 8 | WS23: 6 | WU23: 8 | WV23: 6 | XH23: 13 | XI23: 4.2 | XY23: 18 | XZ23: =CONCATENATE("x"," − ",RANDBETWEEN(1,4)) -> x − 1
QV24: b | QW24: = | QX24: =QW9 -> 8 | TL24: 20 | TM24: 10a + 3b = 19 | TN24: 5a − b = 2 | UA24: 20 | UB24: 6(4 - y) | VI24: 20 | VJ24: 3a + 7 | VT24: 2 | VU24: 0.8 | XH24: 14 | XI24: 4.3 | XY24: 19 | XZ24: =CONCATENATE(RANDBETWEEN(2,4),"x"," − ",RANDBETWEEN(1,4)) -> 4x − 3
QK25: For multiplications CG24 to CQ25 | QQ25: =RANDBETWEEN(2,5) -> 2 | QU25: =QQ25 -> 2 | QV25: b | QW25: = | QX25: =QX24*QQ25 -> 16 | RL25: 1 | RM25: =CONCATENATE(RL8,RM8," ",RN8," ",RO8," ",RP8, " ",RQ8,RR8," ",RS8," ",RT8) -> 9a + 3 = 2a + 10 | TL25: =RANDBETWEEN(1,20) -> 18 | UA25: 21 | UB25: 3(9 - 2a) | VI25: 21 | VJ25: 7a - 1 | VT25: 3 | VU25: 5 | WC25: =RANDBETWEEN(1,8) -> 6 | WD25: =VLOOKUP(WC25,WC16:WD23,2) -> 4 | WF25: =RANDBETWEEN(1,8) -> 3 | WG25: =VLOOKUP(WF25,WF16:WG23,2) -> 1 | WM25: Both Coeff =1 | WR25: =RANDBETWEEN(1,8) -> 1 | WS25: =VLOOKUP(WR25,WR16:WS23,2) -> -2 | WU25: =RANDBETWEEN(1,8) -> 6 | WV25: =VLOOKUP(WU25,WU16:WV23,2) -> 4 | XB25: Both Coeff =1 | XH25: 15 | XI25: 4.4 | XY25: 20 | XZ25: =CONCATENATE(RANDBETWEEN(2,4),"x"," + ",RANDBETWEEN(1,4)) -> 2x + 3
QK26: Forvdivisions CG30 to CK32 | QU26: =QS27 -> 6 | QV26: b | QW26: = | QX26: =QX25*QQ27 -> 48 | RL26: 2 | RM26: =CONCATENATE(RL13,RM13," ",RN13," ",RO13," ",RP13, " ",RQ13,RR13," ",RS13," ",RT13) -> 12a − 7 = 5a + 7 | UA26: 22 | UB26: -3(9 - 2a) | VT26: 4 | VU26: 10 | WC26: No coeff = 1 | WE26: Coeff a =1 | WI26: Coeff b=1 | WR26: No coeff = 1 | WT26: Coeff a =1 | WX26: Coeff b=1 | XH26: 16 | XI26: 4.6
QJ27: Expanding CS | QK27: =UB2 -> 5(c + 4) | QQ27: =RANDBETWEEN(2,5) -> 3 | QS27: =QQ25*QQ27 -> 6 | QT27: b | QU27: + | QV27: =QQ27*RANDBETWEEN(1,9) -> 9 | QW27: = | QX27: =QX26+QV27 -> 57 | RL27: 3 | RM27: =CONCATENATE(RL18,RM18," ",RN18," ",RO18," ",RP18, " ",RQ18,RR18," ",RS18," ",RT18) -> 5a + 3 = 2a − 6 | TR27: =RANDBETWEEN(1,17) -> 17 | TT27: =RANDBETWEEN(1,17) -> 14 | UA27: 23 | UB27: -2(3 - 4b) | VJ27: =RANDBETWEEN(1,21) -> 13 | VT27: 5 | VU27: 20 | WC27: =CONCATENATE(WC6,WD6,WE6,WF6,WG6,WH6,WI6) -> 3a + 3b = 15 | WE27: =CONCATENATE(WD6,WE6,WF6,WG6,WH6,WI6) -> a + 3b = 15 | WI27: =CONCATENATE(WC6,WD6,WE6,WG6,WH6,WI6) -> 3a + b = 15 | WM27: =CONCATENATE(WD6,WE6,WG6,WH6,WI6) -> a + b = 15 | WR27: =CONCATENATE(WR6,WS6,WT6,WU6,WV6,WW6,WX6) -> 1a + 3b = 7 | WT27: =CONCATENATE(WS6,WT6,WU6,WV6,WW6,WX6) -> a + 3b = 7 | WX27: =CONCATENATE(WR6,WS6,WT6,WV6,WW6,WX6) -> 1a + b = 7 | XB27: =CONCATENATE(WS6,WT6,WV6,WW6,WX6) -> a + b = 7 | XH27: 17 | XI27: 4.7 | XY27: =RANDBETWEEN(1,10) -> 1 | XZ27: =VLOOKUP(XY27,XY6:YC25,2) -> x + 1
QJ28: Factorising quadratics postive only | QK28: =UE3 -> m2 | QL28: =UG3 -> + 5m + 4 | QO28: CX | RL28: 4 | RM28: =CONCATENATE(RL23,RM23," ",RN23," ",RO23," ",RP23, " ",RQ23,RR23," ",RS23," ",RT23) -> 6a − 5 = 2a − 9 | TX28: =RANDBETWEEN(1,17) -> 15 | TZ28: =RANDBETWEEN(1,17) -> 5 | UA28: 24 | UB28: -4(6 - 5c) | VT28: 6 | VU28: 50 | WC28: =CONCATENATE(WC7,WD7,WE7,WF7,WG7,WH7,WI7) -> 3a − 4b = 8 | WE28: =CONCATENATE(WD7,WE7,WF7,WG7,WH7,WI7) -> a − 4b = 8 | WI28: =CONCATENATE(WC7,WD7,WE7,WG7,WH7,WI7) -> 3a − b = 8 | WM28: =CONCATENATE(WD7,WE7,WG7,WH7,WI7) -> a − b = 8 | WR28: =CONCATENATE(WR7,WS7,WT7,WU7,WV7,WW7,WX7) -> 5a − 6b = 14 | WT28: =CONCATENATE(WS7,WT7,WU7,WV7,WW7,WX7) -> a − 6b = 14 | WX28: =CONCATENATE(WR7,WS7,WT7,WV7,WW7,WX7) -> 5a − b = 14 | XB28: =CONCATENATE(WS7,WT7,WV7,WW7,WX7) -> a − b = 14 | XH28: 18 | XI28: 4.8 | XY28: =RANDBETWEEN(11,20) -> 18 | XZ28: =VLOOKUP(XY28,XY7:YC26,2) -> x − 1
QR29: =QQ27 -> 3 | QS29: ( | QT29: =QS27/QQ27 -> 2 | QU29: b | QV29: =QU27 -> + | QW29: =QV27/QQ27 -> 3 | QX29: ) | QY29: = | QZ29: =QX27 -> 57 | UA29: 25 | UB29: -5(9a + 2) | WC29: =CONCATENATE(WC8,WD8,WE8,WF8,WG8,WH8,WI8) -> 3a + 3b = 15 | WE29: =CONCATENATE(WD8,WE8,WF8,WG8,WH8,WI8) -> a + 3b = 15 | WI29: =CONCATENATE(WC8,WD8,WE8,WG8,WH8,WI8) -> 3a + b = 15 | WM29: =CONCATENATE(WD8,WE8,WG8,WH8,WI8) -> a + b = 15 | WR29: =CONCATENATE(WR8,WS8,WT8,WU8,WV8,WW8,WX8) -> 3a + 1b = 13 | WT29: =CONCATENATE(WS8,WT8,WU8,WV8,WW8,WX8) -> a + 1b = 13 | WX29: =CONCATENATE(WR8,WS8,WT8,WV8,WW8,WX8) -> 3a + b = 13 | XB29: =CONCATENATE(WS8,WT8,WV8,WW8,WX8) -> a + b = 13 | XH29: 19 | XI29: 5.2
QR30: =QR29 -> 3 | QS30: =QS29 -> ( | QT30: =QT29 -> 2 | QU30: =QU29 -> b | QV30: − | QW30: =QW29 -> 3 | QX30: =QX29 -> ) | QY30: =QY29 -> = | QZ30: =QX26-QV27 -> 39 | RL30: =RANDBETWEEN(1,4) -> 4 | RM30: =VLOOKUP(RL30,RL25:RM28,2) -> 6a − 5 = 2a − 9 | UA30: 26 | UB30: -6(3b - 3) | VT30: =RANDBETWEEN(1,6) -> 5 | VU30: =VLOOKUP(VT30,VT23:VU28,2) -> 20 | WC30: =CONCATENATE(WC9,WD9,WE9,WF9,WG9,WH9,WI9) -> 5a + 3b = 23 | WE30: =CONCATENATE(WD9,WE9,WF8,WG9,WH9,WI9) -> a + 3b = 23 | WI30: 5a + b = 23 | WM30: =CONCATENATE(WD9,WE9,WG9,WH9,WI9) -> a + b = 23 | WR30: =CONCATENATE(WR9,WS9,WT9,WU9,WV9,WW9,WX9) -> 4a + 4b = 20 | WT30: =CONCATENATE(WS9,WT9,WU8,WV9,WW9,WX9) -> a + 1b = 20 | WX30: 4a + b = 20 | XB30: =CONCATENATE(WS9,WT9,WV9,WW9,WX9) -> a + b = 20 | XH30: 20 | XI30: 5.3 | XY30: 1 | XZ30: −
UA31: 27 | UB31: -7(5c - 4) | XH31: 21 | XI31: 5.4 | XY31: 2 | XZ31: +
UA32: 28 | UB32: -8(2d + 5) | WB32: 1 | WC32: =IF(WK6=2,WM27,IF(WC6=1,WE27,IF(WF6=1,WI27,WC27))) -> 3a + 3b = 15 | WD32: =IF(WK7=2,WM28,IF(WC7=1,WE28,IF(WF7=1,WI28,WC28))) -> 3a − 4b = 8 | WQ32: 1 | WR32: =IF(WZ6=2,XB27,IF(WR6=1,WT27,IF(WU6=1,WX27,WR27))) -> a + 3b = 7 | WS32: =IF(WZ7=2,XB28,IF(WR7=1,WT28,IF(WU7=1,WX28,WR28))) -> 5a − 6b = 14 | XH32: 22 | XI32: 5.6
QJ33: Simultaneous equations | QK33: =TM2 -> 4a + 3b = 17 | QQ33: 1 | QR33: =CONCATENATE(QR29,QS29,QT29,QU29,QV29,QW29,QX29,QY29," ",QZ29) -> 3( 2b + 3) = 57 | QW33: =RANDBETWEEN(1,2) -> 1 | UA33: 29 | UB33: -9(3e + 2) | WB33: 2 | WC33: =IF(WK8=2,WM29,IF(WC8=1,WE29,IF(WF8=1,WI29,WC29))) -> 3a + 3b = 15 | WD33: =IF(WK9=2,WM30,IF(WC9=1,WE30,IF(WF9=1,WI30,WC30))) -> 5a + 3b = 23 | WQ33: 2 | WR33: =IF(WZ8=2,XB29,IF(WR8=1,WT29,IF(WU8=1,WX29,WR29))) -> 3a + b = 13 | WS33: =IF(WZ9=2,XB30,IF(WR9=1,WT30,IF(WU9=1,WX30,WR30))) -> 4a + 4b = 20 | XH33: 23 | XI33: 5.7 | XY33: =RANDBETWEEN(1,2) -> 1 | XZ33: =VLOOKUP(XY33,XY30:XZ31,2) -> −
QK34: =TM3 -> 3a − b = 3 | QQ34: 2 | QR34: =CONCATENATE(QR30,QS30,QT30,QU30,QV30,QW30,QX30,QY30," ",QZ30) -> 3( 2b − 3) = 39 | UA34: 30 | UB34: -12(f - 3) | XH34: 24 | XI34: 5.8
WB35: =RANDBETWEEN(1,2) -> 2 | WC35: =VLOOKUP(WB35,WB32:WF33,2) -> 3a + 3b = 15 | WQ35: =RANDBETWEEN(1,2) -> 1 | WR35: =VLOOKUP(WQ35,WQ32:WU33,2) -> a + 3b = 7
QJ36: More Indices | QK36: ED | UA36: =RANDBETWEEN(1,30) -> 3 | WC36: =VLOOKUP(WB35,WB32:WD33,3) -> 5a + 3b = 23 | WR36: =VLOOKUP(WQ35,WQ32:WS33,3) -> 5a − 6b = 14 | XH36: =RANDBETWEEN(1,24) -> 12 | XI36: =VLOOKUP(XH36,XH11:XI34,2) -> 3.8

Sheet DT (hidden)
YE2: The cells below will randomly return a cumulative frequency, estimate of the mean or histogram table | ZK2: Which group contains the median?
YC5: =RANDBETWEEN(1,3) -> 1
YD6: =VLOOKUP($ZH$18,$YC$13:$ZA$29,2) -> Complete the table for Cumulative Frequency | YE6: =VLOOKUP($ZH$18,$YC$13:$ZA$29,3) -> Age | YJ6: =VLOOKUP($ZH$18,$YC$13:$ZA$29,8) -> Frequency | YO6: =VLOOKUP($ZH$18,$YC$13:$ZA$29,13) -> CF | YT6: =VLOOKUP($ZH$18,$YC$13:$ZA$29,18) -> 
YE7: =VLOOKUP($ZH$18+1,$YC$13:$ZA$29,3) ->  | YJ7: =VLOOKUP($ZH$18+1,$YC$13:$ZA$29,8) ->  | YO7: =VLOOKUP($ZH$18+1,$YC$13:$ZA$29,13) ->  | YT7: =VLOOKUP($ZH$18+1,$YC$13:$ZA$29,18) -> 
YE8: =VLOOKUP($ZH$18+2,$YC$13:$ZA$29,3) -> 0 ≤ A < 20 | YJ8: =VLOOKUP($ZH$18+2,$YC$13:$ZA$29,8) -> 15 | ZK8: Mark | ZL8: =VLOOKUP($ZK$22,$ZK$18:$ZQ$19,2) -> 0 - 2 | ZM8: =VLOOKUP($ZK$22,$ZK$18:$ZQ$19,3) -> 3 - 5 | ZN8: =VLOOKUP($ZK$22,$ZK$18:$ZQ$19,4) -> 6 - 7 | ZO8: =VLOOKUP($ZK$22,$ZK$18:$ZQ$19,5) -> 8 - 10 | ZP8: =VLOOKUP($ZK$22,$ZK$18:$ZQ$19,6) -> 11 - 13 | ZQ8: =VLOOKUP($ZK$22,$ZK$18:$ZQ$19,7) -> 14 - 16
YE9: =VLOOKUP($ZH$18+3,$YC$13:$ZA$29,3) -> 20 ≤ A < 40 | YJ9: =VLOOKUP($ZH$18+3,$YC$13:$ZA$29,8) -> 18 | ZK9: Frequency | ZL9: =ROUND(ZL16,0) -> 6 | ZM9: =ROUND(ZM16,0) -> 9 | ZN9: =ROUND(ZN16,0) -> 22 | ZO9: =ROUND(ZO16,0) -> 22 | ZP9: =ROUND(ZP16,0) -> 15 | ZQ9: =ZQ16-ZP9-ZO9-ZN9-ZM9-ZL9 -> 6
YE10: =VLOOKUP($ZH$18+4,$YC$13:$ZA$29,3) -> 40 ≤ A < 60 | YJ10: =VLOOKUP($ZH$18+4,$YC$13:$ZA$29,8) -> 14
YC13: 1 | YD13: Complete the table for a Histogram | YE13: Age | YJ13: Frequency | YO13: Class Width | YT13: Frequency Density | ZG13: 1 | ZH13: 1
YC14: 2 | YJ14: f | ZG14: 2 | ZH14: 7
YC15: 3 | YE15: =CONCATENATE(ZC15," ≤ A < ",ZE15) -> 0 ≤ A < 10 | YJ15: =RANDBETWEEN(1,10)*(ZE15-ZC15) -> 20 | ZC15: 0 | ZE15: =ZC16 -> 10 | ZG15: 3 | ZH15: 13 | ZL15: =RANDBETWEEN(1,10) -> 7 | ZM15: =RANDBETWEEN(10,15) -> 11 | ZN15: =RANDBETWEEN(15,30) -> 27 | ZO15: =RANDBETWEEN(15,30) -> 27 | ZP15: =RANDBETWEEN(10,25) -> 19
YC16: 4 | YE16: =CONCATENATE(ZC16," ≤ A < ",ZE16) -> 10 ≤ A < 50 | YJ16: =RANDBETWEEN(1,10)*(ZE16-ZC16) -> 200 | ZC16: =ZD16*10 -> 10 | ZD16: =RANDBETWEEN(1,+ZD17-1) -> 1 | ZE16: =ZC17 -> 50 | ZL16: =ZL15*ZQ16/100 -> 5.6 | ZM16: =ZM15*ZQ16/100 -> 8.8 | ZN16: =ZN15*ZQ16/100 -> 21.6 | ZO16: =ZO15*ZQ16/100 -> 21.6 | ZP16: =ZP15*ZQ16/100 -> 15.2 | ZQ16: =RANDBETWEEN(5,8)*10 -> 80
YC17: 5 | YE17: =CONCATENATE(ZC17," ≤ A < ",ZE17) -> 50 ≤ A < 90 | YJ17: =RANDBETWEEN(1,10)*(ZE17-ZC17) -> 40 | ZC17: =ZD17*10 -> 50 | ZD17: =RANDBETWEEN(4,ZF17-1) -> 5 | ZE17: =ZF17*10 -> 90 | ZF17: =RANDBETWEEN(8,10) -> 9
YC18: 6 | ZG18: =RANDBETWEEN(1,3) -> 3 | ZH18: =VLOOKUP(ZG18,ZG13:ZH15,2) -> 13 | ZK18: 1 | ZL18: 0 - 2 | ZM18: 3 - 5 | ZN18: 6 - 7 | ZO18: 8 - 10 | ZP18: 11 - 13 | ZQ18: 14 - 16
YC19: 7 | YD19: Calculate an Estimate of the Mean | YE19: Age | YJ19: Frequency | YO19: Midpoint | YT19: Frequency × Midpoint | ZK19: 2 | ZL19: 0 - 4 | ZM19: 5 - 9 | ZN19: 10 - 14 | ZO19: 15 - 19 | ZP19: 20 - 24 | ZQ19: 25 - 29
YC20: 8 | YJ20: f | YO20: x | YT20: fx
YC21: 9 | YE21: =CONCATENATE(ZC21," ≤ A < ",ZE21) -> 0 ≤ A < 10 | YJ21: =ZG21 -> 9 | ZC21: 0 | ZE21: =RANDBETWEEN(1,2)*10 -> 10 | ZG21: =RANDBETWEEN(5,10) -> 9
YC22: 10 | YE22: =CONCATENATE(ZC22," ≤ A < ",ZE22) -> 10 ≤ A < 50 | YJ22: =ZG22 -> 8 | ZC22: =ZE21 -> 10 | ZD22: =RANDBETWEEN(1,2)*20 -> 40 | ZE22: =ZC22+ZD22 -> 50 | ZG22: =ROUND(ZH22,0) -> 8 | ZH22: =(ZG24-ZG21)*RANDBETWEEN(4,7)/10 -> 8.4 | ZK22: =RANDBETWEEN(1,2) -> 1
YC23: 11 | YE23: =CONCATENATE(ZC23," ≤ A < ",ZE23) -> 50 ≤ A < 90 | YJ23: =ZG23 -> 13 | ZC23: =ZE22 -> 50 | ZD23: =RANDBETWEEN(1,2)*20 -> 40 | ZE23: =ZC23+ZD23 -> 90 | ZG23: =ZG24-ZG22-ZG21 -> 13
YC24: 12 | ZG24: =RANDBETWEEN(2,3)*10 -> 30
YC25: 13 | YD25: Complete the table for Cumulative Frequency | YE25: Age | YJ25: Frequency | YO25: CF
YC26: 14
YC27: 15 | YE27: 0 ≤ A < 20 | YJ27: =RANDBETWEEN(10,20) -> 15
YC28: 16 | YE28: 20 ≤ A < 40 | YJ28: =RANDBETWEEN(10,20) -> 18
YC29: 17 | YE29: 40 ≤ A < 60 | YJ29: =RANDBETWEEN(10,20) -> 14

Sheet N (hidden)
VD1: × | VY1: Product of Prime Factors | WD1: Standard Form | WU1: Percentages | XA1: Compound Interest and Depreciation | XD1: Dividing by a ratio | XK1: Negative Numbers | XP1: Index form | XT1: Percentage of a quantity | XW1: Fractions | YA1: Arithmetic | YF1: Recurring Decimals | YS1: rationalise surds | YW1: Quadratic Surds | ZJ1: Bounds | ZQ1: Reverse Percentages
VD2: ÷ | VY2: =CONCATENATE("a) express ",VZ22," as a product of it's prime factors") -> a) express 120 as a product of it's prime factors | WU2: =CONCATENATE(WV18,"% of ",WX18) -> 5% of 250 | XA2: =VLOOKUP(XA24,XA22:XB23,2) -> £200 is invested at 5% per annum. What is it's value after 5 years? | XD2: Split | XF2: =XJ20 -> 48 | XG2: in the ratio | XI2: =CONCATENATE(XE20," : ",XF20," : ",XG20) -> 4 : 5 : 7 | XR2: =VLOOKUP(XQ13,XQ7:XR12,2) -> 2 × 2 × 2 × 2 × 2 × 2 × 2 | XT2: =XU15 -> 19 | XU2: as a % of | XV2: =XV15 -> 20 | YT2: =YU20 -> 6 | YV2: √ | YX2: ( | YY2: =RANDBETWEEN(2,7) -> 7 | YZ2: =YY11 -> − | ZA2: √ | ZB2: =YY19 -> 6 | ZC2: )( | ZD2: =RANDBETWEEN(2,7) -> 4 | ZE2: =ZB11 -> − | ZF2: =ZA2 -> √ | ZG2: =ZB2 -> 6 | ZH2: ) | ZJ2: =ZN11 -> 500 | ZK2: has been rounded to
VD3: − | VY3: =CONCATENATE("b) find the ",WA22," of ") -> b) find the LCM of | WU3: =WV23 -> increase | WV3: =WX19 -> 810 | WW3: by | WX3: =WV19 -> 35 | WY3: % | YK3: =VLOOKUP(YG13,YG7:YQ10,9) -> • | YL3: =VLOOKUP(YG13,YG7:YQ10,10) ->  | YM3: =VLOOKUP(YG13,YG7:YQ10,11) -> • | YT3: =CONCATENATE(YV2,YU14) -> √3 | ZJ3: =ZK11 -> 1 | ZK3: =ZL11 -> significant figure
YI4: 0 | YJ4: . | YK4: =VLOOKUP(YG13,YG7:YQ10,5) -> 5 | YL4: =VLOOKUP(YG13,YG7:YQ10,6) -> 3 | YM4: =VLOOKUP(YG13,YG7:YQ10,7) -> 1 | YX4: =CONCATENATE(YX2,YY2,YZ2,ZA2,ZB2,ZC2,ZD2,ZE2,ZF2,ZG2,ZH2) -> (7 − √6)(4 − √6) | ZJ4: what are the maximum and minimum possible values?
VD7: Adding with negatives | VE7: BH | VY7: 1 | VZ7: 60 | WA7: HCF | WB7: 60 | WC7: 96 | WD7: 1 | WE7: -9 | WF7: ( | WG7: =RANDBETWEEN(1,9) -> 1 | WH7: × | WI7: 10 | WJ7: =WE26 -> -8 | WK7: ) | WL7: × | WM7: ( | WN7: =RANDBETWEEN(1,9) -> 7 | WO7: × | WP7: 10 | WQ7: =WE27 -> -1 | WR7: ) | WU7: 1 | WV7: 5 | XA7: 1 | XB7: 2 | XD7: 1 | XE7: 1 | XF7: 2 | XG7: 3 | XI7: =SUM(XE7:XH7) -> 6 | XJ7: =XI7*RANDBETWEEN(3,10) -> 36 | XK7: =CONCATENATE(XN11," + ",XN12) -> -8 + -1 | XQ7: 1 | XR7: 2 × 2 | XT7: 1 | XU7: =RANDBETWEEN(1,XV7-1) -> 19 | XV7: 20 | XW7: =RANDBETWEEN(1,XW8-1) -> 1 | XX7: + | XY7: =RANDBETWEEN(1,XY8-1) -> 5 | YA7: =CONCATENATE(RANDBETWEEN(211,899)," × ",RANDBETWEEN(21,39)) -> 877 × 37 | YG7: 1 | YI7: 0 | YJ7: . | YK7: =RANDBETWEEN(1,9) -> 1 | YL7: 2 | YO7: • | YP7: • | ZR7: OP | ZS7: % | ZT7: SP
VD8: Adding Fractions | VE8: BT | VY8: 2 | VZ8: 96 | WA8: LCM | WB8: 60 | WC8: 96 | WD8: 2 | WE8: -8 | WF8: ( | WG8: =RANDBETWEEN(2,9)*WN8/10 -> 1.6 | WH8: × | WI8: 10 | WJ8: =WE28 -> 3 | WK8: ) | WL8: ÷ | WM8: ( | WN8: =RANDBETWEEN(2,9) -> 4 | WO8: × | WP8: 10 | WQ8: =WE29 -> 5 | WR8: ) | WU8: 2 | WV8: 11 | XA8: 2 | XB8: 2.5 | XD8: 2 | XE8: 1 | XF8: 2 | XG8: 5 | XI8: =SUM(XE8:XH8) -> 8 | XJ8: =XI8*RANDBETWEEN(3,10) -> 32 | XK8: =CONCATENATE(XN13," − ",XN14) -> 7 − -9 | XQ8: 2 | XR8: 2 × 2 × 2 | XT8: 2 | XU8: =RANDBETWEEN(1,9)*4 -> 20 | XV8: 30 | XW8: =RANDBETWEEN(2,9) -> 2 | XY8: =RANDBETWEEN(2,9) -> 7 | YA8: =YA12 -> 312 ÷ 6 | YG8: 2 | YI8: 0 | YJ8: . | YK8: =RANDBETWEEN(1,4) -> 2 | YL8: =RANDBETWEEN(YK8+1,9) -> 6 | YP8: • | YT8: 1 | YU8: 2 | YX8: 1 | YY8: + | ZA8: 1 | ZB8: + | ZJ8: 1 | ZK8: 1 | ZL8: decimal place | ZN8: =RANDBETWEEN(250,950)/10 -> 31.7 | ZR8: =RANDBETWEEN(1,50)*20 -> 520 | ZS8: =ZR16 -> 40 | ZT8: =ZR8*(100-ZS8)/100 -> 312
VD9: Addition | VY9: 3 | VZ9: 120 | WA9: LCM | WB9: 150 | WC9: 120 | WD9: 3 | WE9: -7 | WU9: 3 | WV9: 15 | XA9: 3 | XB9: 3 | XD9: 3 | XE9: 1 | XF9: 2 | XG9: 7 | XI9: 10 | XJ9: 80 | XK9: =XM33 -> -36 ÷ 6 | XQ9: 3 | XR9: 2 × 2 × 2 × 2 | XT9: 3 | XU9: =RANDBETWEEN(1,9)*3 -> 18 | XV9: 40 | XW9: =RANDBETWEEN(1,XW10-1) -> 1 | XX9: × | XY9: =RANDBETWEEN(1,XY10-1) -> 2 | YA9: =YB12 -> 9.98 − 1.35 | YG9: 3 | YI9: 0 | YJ9: . | YK9: 5 | YL9: 3 | YM9: =RANDBETWEEN(1,9) -> 1 | YO9: • | YQ9: • | YT9: 2 | YU9: 3 | YX9: 2 | YY9: − | ZA9: 2 | ZB9: − | ZJ9: 2 | ZK9: 1 | ZL9: significant figure | ZN9: =VLOOKUP(ZO9,ZK13:ZM41,2) -> 500 | ZO9: =RANDBETWEEN(1,29) -> 23
VD10: compound | VY10: 4 | VZ10: 150 | WA10: LCM | WB10: 120 | WC10: 150 | WD10: 4 | WE10: -6 | WU10: 4 | WV10: 19 | XA10: 4 | XB10: 3.5 | XD10: 4 | XE10: 2 | XF10: 3 | XG10: 5 | XI10: 10 | XJ10: 100 | XK10: =XM38 -> 3 × -2 | XQ10: 4 | XR10: 2 × 2 × 2 × 2 × 2 | XT10: 4 | XU10: =RANDBETWEEN(1,XV10-1) -> 13 | XV10: 50 | XW10: =RANDBETWEEN(2,9) -> 2 | XY10: =RANDBETWEEN(2,9) -> 3 | YA10: =YC12 -> 2.185 + 8.018 | YG10: 4 | YI10: 0 | YJ10: . | YK10: 4 | YL10: 5 | YM10: =RANDBETWEEN(1,9) -> 5 | YP10: • | YQ10: • | YT10: 3 | YU10: 5 | ZJ10: 3 | ZK10: 2 | ZL10: significant figures | ZN10: =VLOOKUP(ZO10,ZK13:ZM41,3) -> 16 | ZO10: =RANDBETWEEN(1,29) -> 6 | ZQ10: 1 | ZR10: 10
VD11: depreciation | VY11: 5 | VZ11: 108 | WA11: HCF | WB11: 24 | WC11: 108 | WD11: 5 | WE11: -5 | WU11: 5 | WV11: 22 | XA11: 5 | XB11: 4 | XD11: 5 | XE11: 2 | XF11: 3 | XG11: 7 | XI11: 12 | XJ11: 60 | XK11: 1 | XL11: -9 | XM11: =RANDBETWEEN(1,18) -> 2 | XN11: =VLOOKUP(XM11,$XK$11:$XL$28,2) -> -8 | XQ11: 5 | XR11: 2 × 2 × 2 × 2 × 2 × 2 | XT11: 5 | XU11: =RANDBETWEEN(1,9)*6 -> 42 | XV11: 60 | XW11: =RANDBETWEEN(1,XW12-1) -> 1 | XX11: ÷ | XY11: =RANDBETWEEN(1,XY12-1) -> 1 | YT11: 4 | YU11: 6 | YX11: =RANDBETWEEN(1,2) -> 2 | YY11: =VLOOKUP(YX11,YX8:YY9,2) -> − | ZA11: =RANDBETWEEN(1,2) -> 2 | ZB11: =VLOOKUP(ZA11,ZA8:ZB9,2) -> − | ZJ11: =RANDBETWEEN(1,3) -> 2 | ZK11: =VLOOKUP(ZJ11,ZJ8:ZN10,2) -> 1 | ZL11: =VLOOKUP(ZJ11,ZJ8:ZN10,3) -> significant figure | ZN11: =VLOOKUP(ZJ11,ZJ8:ZN10,5) -> 500 | ZQ11: 2 | ZR11: 15
VD12: Dividing Fractions | VE12: BT | VY12: 6 | VZ12: 56 | WA12: HCF | WB12: 56 | WC12: 98 | WD12: 6 | WE12: -4 | WU12: 6 | WV12: 35 | XA12: 6 | XB12: 4.5 | XD12: 6 | XE12: 2 | XF12: 5 | XG12: 7 | XI12: 14 | XJ12: 126 | XK12: 2 | XL12: -8 | XM12: =RANDBETWEEN(1,9) -> 9 | XN12: =VLOOKUP(XM12,$XK$11:$XL$28,2) -> -1 | XQ12: 6 | XR12: 2 × 2 × 2 × 2 × 2 × 2 × 2 | XT12: 6 | XU12: =RANDBETWEEN(1,9)*7 -> 21 | XV12: 70 | XW12: =RANDBETWEEN(2,9) -> 2 | XY12: =RANDBETWEEN(2,9) -> 4 | YA12: =CONCATENATE(YA18," ",YA19," ",YA20) -> 312 ÷ 6 | YB12: =CONCATENATE(YB17,YB18,YB19) -> 9.98 − 1.35 | YC12: =CONCATENATE(YC17,YC18,YC19) -> 2.185 + 8.018 | YT12: 5 | YU12: 7 | ZL12: 1sf | ZM12: 2sf | ZQ12: 3 | ZR12: 25
VD13: Dividing with negatives | VE13: BH | VY13: 7 | VZ13: 126 | WA13: HCF | WB13: 84 | WC13: 126 | WD13: 7 | WE13: -3 | WU13: 7 | WV13: 45 | XA13: 7 | XB13: 5 | XD13: 7 | XE13: 2 | XF13: 5 | XG13: 9 | XI13: 16 | XJ13: 80 | XK13: 3 | XL13: -7 | XM13: =RANDBETWEEN(1,18) -> 16 | XN13: =VLOOKUP(XM13,$XK$11:$XL$28,2) -> 7 | XQ13: =RANDBETWEEN(1,6) -> 6 | XT13: 7 | XU13: =RANDBETWEEN(1,9)*8 -> 16 | XV13: 80 | XW13: =RANDBETWEEN(XW14-2,XW14-1) -> 8 | XX13: − | XY13: =RANDBETWEEN(1,4) -> 2 | YG13: =RANDBETWEEN(1,4) -> 3 | YX13: 1 | YY13: 2 | ZK13: 1 | ZL13: 1 | ZM13: 11 | ZQ13: 4 | ZR13: 30
VD14: Division | VY14: 8 | VZ14: 24 | WA14: HCF | WB14: 64 | WC14: 24 | WD14: 8 | WE14: -2 | WU14: 8 | WV14: 60 | XA14: =RANDBETWEEN(1,7) -> 7 | XB14: =VLOOKUP(XA14,XA7:XB13,2) -> 5 | XD14: 8 | XE14: 3 | XF14: 4 | XG14: 5 | XI14: 12 | XJ14: 84 | XK14: 4 | XL14: -6 | XM14: =RANDBETWEEN(1,9) -> 1 | XN14: =VLOOKUP(XM14,$XK$11:$XL$28,2) -> -9 | XT14: 8 | XU14: =RANDBETWEEN(1,9)*9 -> 81 | XV14: 90 | XW14: =RANDBETWEEN(5,9) -> 9 | XY14: =RANDBETWEEN(5,9) -> 6 | YT14: =RANDBETWEEN(1,5) -> 2 | YU14: =VLOOKUP(YT14,YT8:YU12,2) -> 3 | YX14: 2 | YY14: 3 | ZK14: 2 | ZL14: 2 | ZM14: 12 | ZQ14: 5 | ZR14: 35
VD15: Improper Fraction to Mixed No. | VY15: 9 | VZ15: 24 | WA15: LCM | WB15: 64 | WC15: 24 | WD15: 9 | WE15: -1 | WU15: 9 | WV15: 82 | XD15: 9 | XE15: 3 | XF15: 4 | XG15: 7 | XI15: 14 | XJ15: 56 | XK15: 5 | XL15: -5 | XM15: 4 | XN15: =RANDBETWEEN(2,9) -> 6 | XT15: =RANDBETWEEN(1,8) -> 1 | XU15: =VLOOKUP(XT15,XT7:XV14,2) -> 19 | XV15: =VLOOKUP(XT15,XT7:XV14,3) -> 20 | YX15: 3 | YY15: 5 | ZK15: 3 | ZL15: 3 | ZM15: 13 | ZQ15: 6 | ZR15: 40
VD16: Mixed No. to Improper Fraction | VY16: 10 | VZ16: 84 | WA16: HCF | WB16: 84 | WC16: 35 | WD16: 10 | WE16: 1 | WU16: 10 | WV16: 85 | XA16: 1 | XB16: 10 | XD16: 10 | XE16: 4 | XF16: 5 | XG16: 6 | XI16: 15 | XJ16: 150 | XK16: 6 | XL16: -4 | XM16: =RANDBETWEEN(10,18) -> 15 | XN16: =VLOOKUP(XM16,$XK$11:$XL$28,2) -> 6 | XW16: =RANDBETWEEN(1,12) -> 10 | XZ16: =RANDBETWEEN(1,XZ17-1) -> 1 | YT16: 1 | YU16: 1 | YX16: 4 | YY16: 6 | ZK16: 4 | ZL16: 4 | ZM16: 14 | ZQ16: =RANDBETWEEN(1,6) -> 6 | ZR16: =VLOOKUP(ZQ16,ZQ10:ZR15,2) -> 40
VD17: Multiplication | VY17: 11 | VZ17: 108 | WA17: HCF | WB17: 108 | WC17: 180 | WD17: 11 | WE17: 2 | WU17: 11 | WV17: 98 | XA17: 2 | XB17: 15 | XD17: 11 | XE17: 4 | XF17: 5 | XG17: 7 | XI17: 16 | XJ17: 48 | XK17: 7 | XL17: -3 | XM17: 2 | XN17: =VLOOKUP(XM17,$XK$11:$XL$28,2) -> -8 | XZ17: =RANDBETWEEN(2,9) -> 3 | YA17: =RANDBETWEEN(15,90) -> 52 | YB17: =RANDBETWEEN(500,999)/100 -> 9.98 | YC17: =RANDBETWEEN(1000,9999)/1000 -> 2.185 | YT17: 2 | YU17: =YU14*2 -> 6 | YX17: 5 | YY17: 7 | ZK17: 5 | ZL17: 5 | ZM17: 15
VD18: Multiplying Fractions | VE18: BT | VY18: 12 | VZ18: 72 | WA18: HCF | WB18: 54 | WC18: 72 | WD18: 12 | WE18: 3 | WU18: =RANDBETWEEN(1,11) -> 1 | WV18: =VLOOKUP(WU18,WU7:WV17,2) -> 5 | WX18: =RANDBETWEEN(25,85)*10 -> 250 | XA18: 3 | XB18: 20 | XD18: 12 | XE18: 4 | XF18: 5 | XG18: 9 | XI18: 18 | XJ18: 144 | XK18: 8 | XL18: -2 | XM18: 17 | XN18: =VLOOKUP(XM18,$XK$11:$XL$28,2) -> 8 | YA18: =YA17*YA20 -> 312 | YB18: − | YC18: + | YT18: 3 | YU18: =YU14*3 -> 9 | ZK18: 6 | ZL18: 6 | ZM18: 16
VD19: Multiplying with negatives | VE19: BH | VY19: 13 | VZ19: 54 | WA19: HCF | WB19: 36 | WC19: 54 | WD19: 13 | WE19: 4 | WU19: =RANDBETWEEN(1,8) -> 6 | WV19: =VLOOKUP(WU19,WU7:WV17,2) -> 35 | WX19: =RANDBETWEEN(25,85)*10 -> 810 | XA19: 4 | XB19: 25 | XK19: 9 | XL19: -1 | XM19: 7 | XN19: =VLOOKUP(XM19,$XK$11:$XL$28,2) -> -3 | XW19: =RANDBETWEEN(1, 12)*XW20+RANDBETWEEN(1,XW20-1) -> 29 | XX19: =RANDBETWEEN(1, 12)*XX20+RANDBETWEEN(1,XX20-1) ->  | YA19: ÷ | YB19: =RANDBETWEEN(100,499)/100 -> 1.35 | YC19: =RANDBETWEEN(1000,9999)/1000 -> 8.018 | YX19: =RANDBETWEEN(1,5) -> 4 | YY19: =VLOOKUP(YX19,YX13:YY17,2) -> 6 | ZK19: 7 | ZL19: 7 | ZM19: 17
VD20: Percentages | VY20: 14 | VZ20: 32 | WA20: HCF | WB20: 32 | WC20: 80 | WD20: 14 | WE20: 5 | XA20: 5 | XB20: 30 | XD20: =RANDBETWEEN(1,12) -> 11 | XE20: =VLOOKUP(XD20,XD7:XJ18,2) -> 4 | XF20: =VLOOKUP(XD20,XD7:XJ18,3) -> 5 | XG20: =VLOOKUP(XD20,XD7:XJ18,4) -> 7 | XI20: =VLOOKUP(XD20,XD7:XN18,6) -> 16 | XJ20: =VLOOKUP(XD20,XD7:XJ18,7) -> 48 | XK20: 10 | XL20: 1 | XM20: 1 | XN20: =RANDBETWEEN(2,9) -> 3 | XW20: =RANDBETWEEN(2,12) -> 11 | YA20: =RANDBETWEEN(4,9) -> 6 | YT20: =RANDBETWEEN(1,3) -> 2 | YU20: =VLOOKUP(YT20,YT16:YU18,2) -> 6 | ZK20: 8 | ZL20: 8 | ZM20: 18
VD21: Prime Factors | VE21: V | WD21: 15 | WE21: 6 | WU21: 1 | WV21: increase | XA21: =RANDBETWEEN(1,5) -> 4 | XB21: =VLOOKUP(XA21,XA16:XB20,2) -> 25 | XK21: 11 | XL21: 2 | XM21: 13 | XN21: =RANDBETWEEN(2,9) -> 2 | ZK21: 9 | ZL21: 9 | ZM21: 19
VD22: =VY2 -> a) express 120 as a product of it's prime factors | VE22: V | VY22: =RANDBETWEEN(1,14) -> 3 | VZ22: =VLOOKUP($VY$22,$VY$7:$WC$20,2) -> 120 | WA22: =VLOOKUP($VY$22,$VY$7:$WC$20,3) -> LCM | WB22: =VLOOKUP($VY$22,$VY$7:$WC$20,4) -> 150 | WC22: =VLOOKUP($VY$22,$VY$7:$WC$20,5) -> 120 | WD22: 16 | WE22: 7 | WU22: 2 | WV22: decrease | XA22: 1 | XB22: =CONCATENATE("£",RANDBETWEEN(1,6)*100," is invested at ",XB14,"% per annum. What is it's value after ",RANDBETWEEN(3,9)," years?") -> £200 is invested at 5% per annum. What is it's value after 5 years? | XK22: 12 | XL22: 3 | XM22: 12 | XN22: =VLOOKUP(XM22,$XK$11:$XL$28,2) -> 3 | ZK22: 10 | ZL22: =ZL13*10 -> 10 | ZM22: 24
VD23: random dep/comp | WD23: 17 | WE23: 8 | WU23: =RANDBETWEEN(1,2) -> 1 | WV23: =VLOOKUP(WU23,WU21:WX22,2) -> increase | XA23: 2 | XB23: =CONCATENATE("A car depreciates at ",XB21,"% per annum. What is its value after ",RANDBETWEEN(3,6)," years?") -> A car depreciates at 25% per annum. What is its value after 5 years? | XK23: 13 | XL23: 4 | XM23: 9 | XN23: =VLOOKUP(XM23,$XK$11:$XL$28,2) -> -1 | ZK23: 11 | ZL23: =ZL14*10 -> 20 | ZM23: 37
VD24: Standard Form | WD24: 18 | WE24: 9 | XA24: =RANDBETWEEN(1,2) -> 1 | XK24: 14 | XL24: 5 | XM24: 11 | XN24: =VLOOKUP(XM24,$XK$11:$XL$28,2) -> 2 | ZK24: 12 | ZL24: =ZL15*10 -> 30 | ZM24: 48
VD25: Subtracting Fractions | VE25: BT | XA25: Qty | XB25: % | XC25: Duration | XK25: 15 | XL25: 6 | XM25: 12 | XN25: =VLOOKUP(XM25,$XK$11:$XL$28,2) -> 3 | ZK25: 13 | ZL25: =ZL16*10 -> 40 | ZM25: 53
VD26: Subtracting with negatives | VE26: BH | WD26: =RANDBETWEEN(1,18) -> 2 | WE26: =VLOOKUP(WD26,$WD$7:$WE$24,2) -> -8 | XK26: 16 | XL26: 7 | XM26: 15 | XN26: =VLOOKUP(XM26,$XK$11:$XL$28,2) -> 6 | ZK26: 14 | ZL26: =ZL17*10 -> 50 | ZM26: 62
VD27: Subtraction | WD27: =RANDBETWEEN(1,18) -> 9 | WE27: =VLOOKUP(WD27,$WD$7:$WE$24,2) -> -1 | XK27: 17 | XL27: 8 | XM27: 11 | XN27: =VLOOKUP(XM27,$XK$11:$XL$28,2) -> 2 | ZK27: 15 | ZL27: =ZL18*10 -> 60 | ZM27: 74
WD28: 12 | WE28: =VLOOKUP(WD28,$WD$7:$WE$24,2) -> 3 | XK28: 18 | XL28: 9 | XM28: 6 | XN28: =VLOOKUP(XM28,$XK$11:$XL$28,2) -> -4 | ZK28: 16 | ZL28: =ZL19*10 -> 70 | ZM28: 86
WD29: 14 | WE29: =VLOOKUP(WD29,$WD$7:$WE$24,2) -> 5 | ZK29: 17 | ZL29: =ZL20*10 -> 80 | ZM29: 91
XL30: 1 | XM30: =CONCATENATE(XN16*XN15*-1," ÷ ",XN16) -> -36 ÷ 6 | ZK30: 18 | ZL30: =ZL21*10 -> 90 | ZM30: 54
XL31: 2 | XM31: =CONCATENATE(XN15*XN16," ÷ ",XN16*-1) -> 36 ÷ -6 | ZK31: 19 | ZL31: =ZL22*10 -> 100 | ZM31: 64
XL32: 3 | XM32: =CONCATENATE(XN15*XN16*-1," ÷ ",-1*XN16) -> -36 ÷ -6 | ZK32: 20 | ZL32: =ZL23*10 -> 200 | ZM32: 57
XL33: =RANDBETWEEN(1,3) -> 1 | XM33: =VLOOKUP(XL33,XL30:XN32,2) -> -36 ÷ 6 | ZK33: 21 | ZL33: =ZL24*10 -> 300 | ZM33: =ZM13*10 -> 110
ZK34: 22 | ZL34: =ZL25*10 -> 400 | ZM34: 120
XL35: 1 | XM35: =CONCATENATE(XN20*-1," × ",XN21) -> -3 × 2 | ZK35: 23 | ZL35: =ZL26*10 -> 500 | ZM35: 130
XL36: 2 | XM36: =CONCATENATE(XN20*-1," × ",XN21*-1) -> -3 × -2 | ZK36: 24 | ZL36: =ZL27*10 -> 600 | ZM36: 140
XL37: 3 | XM37: =CONCATENATE(XN20," × ",-1*XN21) -> 3 × -2 | ZK37: 25 | ZL37: =ZL28*10 -> 700 | ZM37: 150
XL38: =RANDBETWEEN(1,3) -> 3 | XM38: =VLOOKUP(XL38,XL35:XN37,2) -> 3 × -2 | ZK38: 26 | ZL38: =ZL29*10 -> 800 | ZM38: 160
ZK39: 27 | ZL39: =ZL30*10 -> 900 | ZM39: 170
ZK40: 28 | ZL40: =ZL31*10 -> 1000 | ZM40: 180
ZK41: 29 | ZL41: =ZL32*10 -> 2000 | ZM41: 190

Sheet G (hidden)
VO1: Area and circumference of circles | VU1: Calculate the area of a triangle of base | WN1: =CONCATENATE(WO22," ",WP22) -> a hexagon | WR1: =WR11 -> Two facts are needed when describing a reflection, name them. | XU1: TRIGONOMETRY 1 | YD1: TRIGONOMETRY 2 | YN1: Circle Theorems | YO1: Area of a triangle | ZC1: Angles in a Polygon | ZM1: Angles on Parallel Lines
VO2: =CONCATENATE("a. calculate the ",VP8," of a circle of ",VP12," ",RANDBETWEEN(2,20),"cm") -> a. calculate the area of a circle of diameter 16cm | VU2: =RANDBETWEEN(4,9) -> 5 | VV2: cm | WG2: S1 | WH2: S2 | WI2: HYP | WT2: How does the following translation vector move a shape? | XG2: ( | XH2: =RANDBETWEEN(-9,9) -> -7 | XI2: ) | XK2: How many | XO2: =XL13 -> metres in a kilometre? | XW2: S1 | XX2: S2 | XY2: HYP | YF2: S1 | YG2: S2 | YH2: HYP | YP2: Find the area of triangle ABC when | ZC2: What are the interior and exterior angles of a regular polygon with | ZM2: draw a pair of parallel lines with a transversal and show a pair of
VO3: =CONCATENATE("b. a ",VP26," sector is cut from this circle, what is it's ",VP16,"?") -> b. a 45° sector is cut from this circle, what is it's perimeter? | VU3: and perpendicular height | WG3: =CONCATENATE(WG12,"cm") -> 3cm | WH3: =CONCATENATE(WH12,"cm") -> 2cm | WI3: =CONCATENATE(WI12,"cm") -> xcm | XH3: =RANDBETWEEN(-9,9) -> -6 | XO3: =XL19 -> mm | XP3: =RANDBETWEEN(2,3) -> 2 | XQ3: =XN19 -> in | XR3: 1cm | XS3: =XP3 -> 2 | YF3: =YF18 -> 2 | YG3: =YG18 ->  | YH3: y | YJ3: =YF26 ->  | YK3: =YG26 -> 57° | YM3: =RANDBETWEEN(1,8) -> 5 | YN3: =VLOOKUP(YM3,YM7:YN14,2) -> The lengths of the two tangents from a point ... | YP3: =CONCATENATE(YQ23," = ",YQ24,"cm, ",YR23," = ",YR24,"cm and ",YS23," = ",YS24,"°") -> a = 5cm, b = 8cm and C = 40°
VU4: =RANDBETWEEN(10,15) -> 14 | VV4: cm | ZM4: =ZN11 -> Corresponding | ZR4: angles
ZC5: =ZD22 -> 5 | ZE5: sides
VO6: 1 | VP6: area | WG6: S1 | WH6: S2 | WI6: HYP | XW6: S1 | XX6: S2 | XY6: HYP | YF6: S1 | YG6: S2 | YH6: HYP
VO7: 2 | VP7: circumference | WF7: 1 | WG7: =RANDBETWEEN(2,10) -> 6 | WH7: =RANDBETWEEN(2,10) -> 5 | WI7: x | WN7: 1 | WO7: a | WP7: triangle | WQ7: 1 | WR7: Three facts are needed when describing a rotation, name them. | XK7: 1 | XL7: centimetres in a metre? | XV7: 1 | XW7: =RANDBETWEEN(2,10) -> 5 | XX7: =RANDBETWEEN(2,10) -> 3 | YE7: 1 | YF7: =RANDBETWEEN(2,10) -> 2 | YH7: y | YM7: 1 | YN7: The angle at the centre is ... | ZC7: 1 | ZD7: 5 | ZM7: 1 | ZN7: Corresponding
VH8: =VO1 -> Area and circumference of circles | VN8: H | VO8: =RANDBETWEEN(1,2) -> 1 | VP8: =VLOOKUP(VO8,VO6:VS7,2) -> area | WF8: 2 | WG8: =RANDBETWEEN(2,10) -> 3 | WH8: =RANDBETWEEN(2,10) -> 2 | WI8: x | WN8: 2 | WO8: a | WP8: quadrilateral | WQ8: 2 | WR8: Three facts are needed when describing an enlargement, name them. | XK8: 2 | XL8: millimetres in a centimetre? | XV8: 2 | XW8: =RANDBETWEEN(2,10) -> 8 | XX8: =RANDBETWEEN(2,10) -> 9 | YE8: 2 | YG8: =RANDBETWEEN(2,10) -> 2 | YH8: y | YM8: 2 | YN8: The angle in a semi-circle is ... | ZC8: 2 | ZD8: 6 | ZM8: 2 | ZN8: Alternate
VH9: Area of triangles | VN9: N | WF9: 3 | WG9: =RANDBETWEEN(2,10) -> 7 | WH9: x | WI9: =RANDBETWEEN(WG9+1,15) -> 15 | WN9: 3 | WO9: a | WP9: rhombus | WQ9: 3 | WR9: Two facts are needed when describing a reflection, name them. | XK9: 3 | XL9: metres in a kilometre? | XV9: 3 | XW9: =RANDBETWEEN(2,10) -> 4 | XY9: =RANDBETWEEN(XW9+1,15) -> 10 | YE9: 3 | YF9: =RANDBETWEEN(2,10) -> 8 | YG9: y | YM9: 3 | YN9: Angles in the same ... | ZC9: 3 | ZD9: 8 | ZM9: 3 | ZN9: Allied
VH10: Polygons | VN10: AG | VO10: 1 | VP10: diameter | WF10: 4 | WG10: x | WH10: =RANDBETWEEN(2,10) -> 8 | WI10: =RANDBETWEEN(WH10+1,15) -> 12 | WN10: 4 | WO10: a | WP10: square | XK10: 4 | XL10: grammes in a kilogramme? | XV10: 4 | XX10: =RANDBETWEEN(2,10) -> 10 | XY10: =RANDBETWEEN(XX10+1,15) -> 12 | YE10: 4 | YG10: y | YH10: =RANDBETWEEN(5,15) -> 5 | YM10: 4 | YN10: Opposite angles in a cyclic quadrilateral ... | ZC10: 4 | ZD10: 9
VH11: Transformation facts | VN11: AK | VO11: 2 | VP11: radius | WN11: 5 | WO11: a | WP11: rectangle | WQ11: =RANDBETWEEN(1,3) -> 3 | WR11: =VLOOKUP(WQ11,WQ7:WR9,2) -> Two facts are needed when describing a reflection, name them. | XK11: 5 | XL11: ? | YE11: 5 | YF11: y | YG11: =RANDBETWEEN(2,10) -> 6 | YM11: 5 | YN11: The lengths of the two tangents from a point ... | ZC11: 5 | ZD11: 10 | ZM11: =RANDBETWEEN(1,3) -> 1 | ZN11: =VLOOKUP(ZM11,ZM7:ZO9,2) -> Corresponding
VO12: =RANDBETWEEN(1,2) -> 1 | VP12: =VLOOKUP(VO12,VO10:VS11,2) -> diameter | WF12: =RANDBETWEEN(1,4) -> 2 | WG12: =VLOOKUP($WF$12,$WF$7:$WI$10,2) -> 3 | WH12: =VLOOKUP($WF$12,$WF$7:$WI$10,3) -> 2 | WI12: =VLOOKUP($WF$12,$WF$7:$WI$10,4) -> x | WN12: 6 | WO12: a | WP12: parallelogram | XV12: =RANDBETWEEN(1,4) -> 2 | XW12: =VLOOKUP(XV12,XV7:XY10,2) -> 8 | XX12: =VLOOKUP(XV12,XV7:XY10,3) -> 9 | XY12: =VLOOKUP(XV12,XV7:XY10,4) ->  | YE12: 6 | YF12: y | YH12: =RANDBETWEEN(5,15) -> 8 | YM12: 6 | YN12: The angle between a tangent and a radius ... | ZC12: 6 | ZD12: 12
WN13: 7 | WO13: a | WP13: trapezium | XK13: =RANDBETWEEN(1,4) -> 3 | XL13: =VLOOKUP(XK13,XK7:XR11,2) -> metres in a kilometre? | XW13: =IF(XW12=" ",0,1) -> 1 | XX13: =IF(XX12=" ",0,1) -> 1 | XY13: 0 | YM13: 7 | YN13: The angle between the tangent and the chord .. | ZC13: 7 | ZD13: 15
VO14: 1 | VP14: area | WN14: 8 | WO14: a | WP14: pentagon | YM14: 8 | YN14: Perpendicular from the centre ... | ZC14: 8 | ZD14: 18
VO15: 2 | VP15: perimeter | WN15: 9 | WO15: a | WP15: hexagon | XK15: 1 | XL15: cm | XN15: in | XO15: 1m | XP15: 2 | ZC15: 9 | ZD15: 20
VO16: =RANDBETWEEN(1,2) -> 2 | VP16: =VLOOKUP(VO16,VO14:VS15,2) -> perimeter | WN16: 10 | WO16: a | WP16: heptagon | XK16: 2 | XL16: mm | XN16: in | XO16: 1cm | XP16: 2 | XV16: 1 | XY16: x | YN16: The angle at the centre is twice the angle at the circumference. | ZC16: 10 | ZD16: 24
WN17: 11 | WO17: an | WP17: octagon | XK17: 3 | XL17: mm | XN17: in | XO17: 1m | XP17: 2 | XV17: 2 | XX17: x | YF17: s1 | YG17: s2 | YH17: hyp | YN17: The angle in a semi-circle is 90° | ZC17: 11 | ZD17: 30
VO18: 1 | VP18: 30° | WN18: 12 | WO18: a | WP18: nonagon | YE18: =RANDBETWEEN(1,6) -> 1 | YF18: =VLOOKUP(YE18,YE7:YJ12,2) -> 2 | YG18: =VLOOKUP(YE18,YE7:YJ12,3) ->  | YH18: =VLOOKUP(YE18,YE7:YJ12,4) -> y | YI18: =VLOOKUP(YE18,YE7:YJ12,5) ->  | YN18: Angles in the same segment are equal. | ZC18: 12 | ZD18: 36
VO19: 2 | VP19: 45° | WN19: 13 | WO19: a | WP19: decagon | XK19: =RANDBETWEEN(1,3) -> 2 | XL19: =VLOOKUP(XK19,XK15:XP17,2) -> mm | XN19: in | XO19: =VLOOKUP(XK19,XK15:XP17,5) -> 1cm | XP19: 2 | XV19: =RANDBETWEEN(1,2) -> 1 | XW19: =VLOOKUP(XV19,XV16:XY17,2) -> 0 | XX19: =VLOOKUP(XV19,XV16:XY17,3) ->  | XY19: =VLOOKUP(XV19,XV16:XY17,4) -> x | YF19: =IF(YF18=" ",0,1) -> 1 | YG19: =IF(YG18=" ",0,1) -> 0 | YH19: =IF(YH18=" ",0,1) -> 1 | YN19: Opposite angles in a cyclic quadrilateral add up to 180°. | YP19: 1 | YQ19: a | YR19: b | YS19: C | ZC19: 13 | ZD19: 40
VO20: 3 | VP20: 60° | WN20: 14 | WO20: a | WP20: dodecagon | XX20: =IF(XX19=" ",0,1) -> 0 | XY20: =IF(XY19=" ",0,1) -> 1 | YN20: The lengths of the two tangents from a point to a circle are equal. | YP20: 2 | YQ20: a | YR20: c | YS20: B | ZC20: 14 | ZD20: 60
VO21: 4 | VP21: 90° | YE21: 1 | YF21: =RANDBETWEEN(25,75) -> 68 | YN21: The angle between a tangent and a radius in a circle is 90°. | YP21: 3 | YQ21: b | YR21: c | YS21: A
VO22: 5 | VP22: 120° | WN22: =RANDBETWEEN(1,14) -> 9 | WO22: =VLOOKUP(WN22,WN7:WP20,2) -> a | WP22: =VLOOKUP(WN22,WN7:WP20,3) -> hexagon | YE22: 2 | YG22: =RANDBETWEEN(25,75) -> 57 | YN22: The angle (α) between the tangent and the chord at the point of contact (D) is equal to the angle (β) in the alternate segment*. | ZC22: =RANDBETWEEN(1,14) -> 1 | ZD22: =VLOOKUP(ZC22,ZC7:ZD20,2) -> 5
VO23: 6 | VP23: 80° | YN23: Perpendicular from the centre bisects the chord: | YP23: =RANDBETWEEN(1,3) -> 1 | YQ23: =VLOOKUP(YP23,YP19:YS21,2) -> a | YR23: =VLOOKUP(YP23,YP19:YS21,3) -> b | YS23: =VLOOKUP(YP23,YP19:YS21,4) -> C
VO24: 7 | VP24: 50° | YE24: =RANDBETWEEN(1,2) -> 2 | YF24: =VLOOKUP(YE24,YE21:YG22,2) ->  | YG24: =VLOOKUP(YE24,YE21:YG22,3) -> 57 | YQ24: =RANDBETWEEN(2,9) -> 5 | YR24: =RANDBETWEEN(2,9) -> 8 | YS24: =RANDBETWEEN(2,12)*10 -> 40
VO25: 8 | VP25: 200° | YF25: =CONCATENATE(YF24,"°") -> ° | YG25: =CONCATENATE(YG24,"°") -> 57°
VO26: =RANDBETWEEN(1,8) -> 2 | VP26: =VLOOKUP(VO26,VO18:VP25,2) -> 45° | YF26: =IF(YF24=" ",YF24,YF25) ->  | YG26: =IF(YG24=" ",YG24,YG25) -> 57°
YF27: =IF(YF24=" ",0,1) -> 0 | YG27: =IF(YG24=" ",0,1) -> 1

Sheet D (hidden)
IJ1: Find the | IM1: Finding missing Probability | IT1: Conditional Probability | KU1: Sketch and label a box plot for the following data | LR1: Stem & Leaf
IK2: =VLOOKUP(IJ12,IJ8:IK10,2) -> mode | IM2: Letter | IN2: A | IO2: B | IP2: C | IQ2: D | IT2: Bob and Fred are taking an English test and a maths test.
IJ3: of | IK3: =CONCATENATE(RANDBETWEEN(1,9)," ",RANDBETWEEN(1,9)," ",RANDBETWEEN(1,9)," ",RANDBETWEEN(1,9)," ",RANDBETWEEN(1,9)) -> 3 6 5 5 8 | IM3: Probability | IN3: =IN18 ->  | IO3: =IO18 -> 0.25 | IP3: =IP18 -> 0.1 | IQ3: =IQ18 -> 0.3 | IT3: The probability of Bob getting the best score in English is | JQ3: =RANDBETWEEN(3,8)/10 -> 0.7 | JT3: , in maths it is | KQ3: =RANDBETWEEN(3,8)/10 -> 0.7 | KV3: =RANDBETWEEN(10,20) -> 11 | KX3: =RANDBETWEEN(21,30) -> 24 | KZ3: =RANDBETWEEN(31,50) -> 48 | LB3: =RANDBETWEEN(51,65) -> 57 | LD3: =RANDBETWEEN(66,70) -> 69 | LF3: =RANDBETWEEN(71,80) -> 77 | LH3: =RANDBETWEEN(81,85) -> 83 | LJ3: =RANDBETWEEN(86,90) -> 89 | LL3: =RANDBETWEEN(91,100) -> 97 | LN3: =RANDBETWEEN(101,110) -> 101 | LP3: =RANDBETWEEN(111,120) -> 116 | LT3: =VLOOKUP($LR$25,$LR$8:$LX$11,LT$7) -> 9 | LU3: =VLOOKUP($LR$25,$LR$8:$LX$11,LU7) -> 1 | LV3: =VLOOKUP($LR$25,$LR$8:$LX$11,LV7) -> 2 | LW3: =VLOOKUP($LR$25,$LR$8:$LX$11,LW7) ->  | LX3: =VLOOKUP($LR$25,$LR$8:$LX$11,LX7) -> 
IM4: How many times would you expect to land on | IT4: Find the probability of | JF4: =IU13 -> Bob getting the best score in one test | LT4: =VLOOKUP($LR$25,$LR$13:$LX$16,LT$7) -> 10 | LU4: =VLOOKUP($LR$25,$LR$13:$LX$16,LU$7) -> 0 | LV4: =VLOOKUP($LR$25,$LR$13:$LX$16,LV$7) -> 2 | LW4: =VLOOKUP($LR$25,$LR$13:$LX$16,LW$7) -> 8 | LX4: =VLOOKUP($LR$25,$LR$13:$LX$16,LX$7) -> 8
LT5: =VLOOKUP($LR$25,$LR$18:$LX$21,LT$7) -> 11 | LU5: =VLOOKUP($LR$25,$LR$18:$LX$21,LU$7) -> 2 | LV5: =VLOOKUP($LR$25,$LR$18:$LX$21,LV$7) -> 4 | LW5: =VLOOKUP($LR$25,$LR$18:$LX$21,LW$7) -> 9 | LX5: =VLOOKUP($LR$25,$LR$18:$LX$21,LX$7) -> 
IM6: =IN31 -> B | IN6: in | IO6: =RANDBETWEEN(2,4)*100 -> 200 | IP6: spins
LT7: 3 | LU7: 4 | LV7: 5 | LW7: 6 | LX7: 7
IJ8: 1 | IK8: mode | IM8: 1 | IO8: =RANDBETWEEN(1,5) -> 4 | IP8: 1 | IQ8: 5 | IT8: 1 | IU8: Bob getting the best score in both tests | LR8: 1 | LT8: =RANDBETWEEN(1,14) -> 11 | LU8: =RANDBETWEEN(0,2) -> 1 | LV8: =RANDBETWEEN(LU8,5) -> 4 | LW8: =RANDBETWEEN(LV8,9) -> 5 | LX8: 5
IJ9: 2 | IK9: median | IM9: 2 | IN9: =RANDBETWEEN(1,5) -> 2 | IP9: 4 | IQ9: 1 | IT9: 2 | IU9: Bob getting the best score in one test | LR9: 2 | LT9: =RANDBETWEEN(1,14) -> 9 | LU9: =RANDBETWEEN(0,2) -> 1 | LV9: =RANDBETWEEN(LU9,5) -> 2
IJ10: 3 | IK10: mean | IM10: 3 | IN10: 4 | IO10: 3 | IQ10: 3 | IT10: 3 | IU10: Fred getting the best score in both tests | LR10: 3 | LT10: =RANDBETWEEN(1,14) -> 12 | LU10: =RANDBETWEEN(0,2) -> 2 | LV10: =RANDBETWEEN(LU10,5) -> 2 | LW10: =RANDBETWEEN(LV10,9) -> 5
IM11: 4 | IN11: 1 | IO11: 5 | IP11: 5 | IT11: 4 | IU11: Bob getting the best score in at least one test. | LR11: 4 | LT11: =RANDBETWEEN(1,14) -> 7 | LU11: =RANDBETWEEN(0,2) -> 0
IJ12: =RANDBETWEEN(1,3) -> 1
IM13: 1 | IO13: =VLOOKUP(IO8,$IM$20:$IN$24,2) -> 0.25 | IP13: =VLOOKUP(IP8,$IM$20:$IN$24,2) -> 0.1 | IQ13: =VLOOKUP(IQ8,$IM$20:$IN$24,2) -> 0.3 | IT13: =RANDBETWEEN(1,4) -> 2 | IU13: =VLOOKUP(IT13,IT8:IV11,2) -> Bob getting the best score in one test | LR13: 1 | LT13: =LT8+1 -> 12 | LU13: =RANDBETWEEN(0,2) -> 1 | LV13: =RANDBETWEEN(LU13,5) -> 5 | LW13: =RANDBETWEEN(LV13,9) -> 6 | LX13: =RANDBETWEEN(LW13,9) -> 6
IM14: 2 | IN14: =VLOOKUP(IN9,$IM$20:$IN$24,2) -> 0.15 | IP14: =VLOOKUP(IP9,$IM$20:$IN$24,2) -> 0.25 | IQ14: =VLOOKUP(IQ9,$IM$20:$IN$24,2) -> 0.1 | LR14: 2 | LT14: =LT9+1 -> 10 | LU14: =RANDBETWEEN(0,2) -> 0 | LV14: =RANDBETWEEN(LU14,5) -> 2 | LW14: =RANDBETWEEN(LV14,9) -> 8 | LX14: 8
IM15: 3 | IN15: =VLOOKUP(IN10,$IM$20:$IN$24,2) -> 0.25 | IO15: =VLOOKUP(IO10,$IM$20:$IN$24,2) -> 0.2 | IQ15: =VLOOKUP(IQ10,$IM$20:$IN$24,2) -> 0.2 | LR15: 3 | LT15: =LT10+1 -> 13 | LU15: =RANDBETWEEN(0,2) -> 1 | LV15: =RANDBETWEEN(LU15,5) -> 2 | LW15: =RANDBETWEEN(LV15,9) -> 8 | LX15: 8
IM16: 4 | IN16: =VLOOKUP(IN11,$IM$20:$IN$24,2) -> 0.1 | IO16: =VLOOKUP(IO11,$IM$20:$IN$24,2) -> 0.3 | IP16: =VLOOKUP(IP11,$IM$20:$IN$24,2) -> 0.3 | LR16: 4 | LT16: =LT11+1 -> 8 | LU16: =RANDBETWEEN(0,2) -> 1 | LV16: =RANDBETWEEN(LU16,5) -> 1 | LW16: =RANDBETWEEN(LV16,9) -> 7
IM18: =RANDBETWEEN(1,4) -> 1 | IN18: =VLOOKUP(IM18,IM13:IQ16,2) ->  | IO18: =VLOOKUP(IM18,IM13:IQ16,3) -> 0.25 | IP18: =VLOOKUP(IM18,IM13:IQ16,4) -> 0.1 | IQ18: =VLOOKUP(IM18,IM13:IQ16,5) -> 0.3 | LR18: 1 | LT18: =LT13+1 -> 13 | LU18: =RANDBETWEEN(0,2) -> 2 | LV18: =RANDBETWEEN(LU18,5) -> 5 | LW18: =RANDBETWEEN(LV18,9) -> 5
LR19: 2 | LT19: =LT14+1 -> 11 | LU19: =RANDBETWEEN(0,2) -> 2 | LV19: =RANDBETWEEN(LU19,5) -> 4 | LW19: =RANDBETWEEN(LV19,9) -> 9
IM20: 1 | IN20: 0.1 | LR20: 3 | LT20: =LT15+1 -> 14 | LU20: =RANDBETWEEN(0,2) -> 1 | LV20: =RANDBETWEEN(LU20,5) -> 4
IM21: 2 | IN21: 0.15 | LR21: 4 | LT21: =LT16+1 -> 9 | LU21: =RANDBETWEEN(0,2) -> 2 | LV21: =RANDBETWEEN(LU21,5) -> 4 | LW21: =RANDBETWEEN(LV21,9) -> 9
IM22: 3 | IN22: 0.2
IM23: 4 | IN23: 0.25
IM24: 5 | IN24: 0.3
LR25: =RANDBETWEEN(1,4) -> 2
IM26: 1 | IN26: B | IO26: C | IP26: D
IM27: 2 | IN27: A | IO27: C | IP27: D
IM28: 3 | IN28: A | IO28: B | IP28: D
IM29: 4 | IN29: A | IO29: B | IP29: C
IN31: =VLOOKUP(IM18,IM26:IP29,RANDBETWEEN(2,4)) -> B

Sheet A2 (hidden)
FR1: =RANDBETWEEN(2,9) -> 5 | FT1: =RANDBETWEEN(2,9) -> 3 | FV1: =RANDBETWEEN(2,9) -> 5 | FX1: =RANDBETWEEN(2,9) -> 4 | GV1: 1) | GW1: =CONCATENATE(FR1,"a"," = ",FR1*RANDBETWEEN(2,9)) -> 5a = 35 | GX1: 2) | GY1: =CONCATENATE(FT1,"b"," = ",FT1*RANDBETWEEN(2,9)) -> 3b = 9 | GZ1: 3) | HA1: =CONCATENATE(FV1,"c"," = ",FV1*RANDBETWEEN(2,9)) -> 5c = 45 | HB1: 4) | HC1: =CONCATENATE(FX1,"d"," = ",FX1*RANDBETWEEN(2,9)) -> 4d = 12
FR3: =RANDBETWEEN(2,9) -> 3 | FT3: 6 | FV3: 3 | FX3: 8 | GV3: 5) | GW3: =CONCATENATE(FR3,"e"," = ",FR3*RANDBETWEEN(2,9)) -> 3e = 24 | GX3: 6) | GY3: =CONCATENATE(FT3,"f"," = ",FT3*RANDBETWEEN(2,9)) -> 6f = 48 | GZ3: 7) | HA3: =CONCATENATE(FV3,"g"," = ",FV3*RANDBETWEEN(2,9)) -> 3g = 27 | HB3: 8) | HC3: =CONCATENATE(FX3,"h"," = ",FX3*RANDBETWEEN(2,9)) -> 8h = 32
FR5: =RANDBETWEEN(2,9) -> 8 | FT5: 9 | FV5: 9 | FX5: 8 | GV5: 9) | GW5: =CONCATENATE(FR5,"j"," = ",FR5*RANDBETWEEN(2,9)) -> 8j = 40 | GX5: 10) | GY5: =CONCATENATE(FT5,"k"," = ",FT5*RANDBETWEEN(2,9)) -> 9k = 54 | GZ5: 11) | HA5: =CONCATENATE(FV5,"m"," = ",FV5*RANDBETWEEN(2,9)) -> 9m = 72 | HB5: 12) | HC5: =CONCATENATE(FX5,"n"," = ",FX5*RANDBETWEEN(2,9)) -> 8n = 56
FR7: =RANDBETWEEN(2,9) -> 9 | FT7: 4 | FV7: 4 | FX7: 3 | GV7: 13) | GW7: =CONCATENATE(FR7,"p"," = ",FR7*RANDBETWEEN(2,9)) -> 9p = 63 | GX7: 14) | GY7: =CONCATENATE(FT7,"q"," = ",FT7*RANDBETWEEN(2,9)) -> 4q = 16 | GZ7: 15) | HA7: =CONCATENATE(FV7,"r"," = ",FV7*RANDBETWEEN(2,9)) -> 4r = 28 | HB7: 16) | HC7: =CONCATENATE(FX7,"s"," = ",FX7*RANDBETWEEN(2,9)) -> 3s = 27
FR9: =RANDBETWEEN(2,9) -> 4 | FT9: 6 | FV9: 3 | FX9: 4 | GV9: 17) | GW9: =CONCATENATE(FR9,"t"," = ",FR9*RANDBETWEEN(2,9)) -> 4t = 36 | GX9: 18) | GY9: =CONCATENATE(FT9,"u"," = ",FT9*RANDBETWEEN(2,9)) -> 6u = 30 | GZ9: 19) | HA9: =CONCATENATE(FV9,"v"," = ",FV9*RANDBETWEEN(2,9)) -> 3v = 18 | HB9: 20) | HC9: =CONCATENATE(FX9,"w"," = ",FX9*RANDBETWEEN(2,9)) -> 4w = 36
FR11: =RANDBETWEEN(2,9) -> 4 | FT11: 2 | FV11: 4 | FX11: 2 | GV11: 21) | GW11: =CONCATENATE(FR11,"x"," = ",FR11*RANDBETWEEN(2,9)) -> 4x = 12 | GX11: 22) | GY11: =CONCATENATE(FT11,"y"," = ",FT11*RANDBETWEEN(2,9)) -> 2y = 12 | GZ11: 23) | HA11: =CONCATENATE(FV11,"z"," = ",FV11*RANDBETWEEN(2,9)) -> 4z = 36 | HB11: 24) | HC11: =CONCATENATE(FX11,"a"," = ",FX11*RANDBETWEEN(2,9)) -> 2a = 10
FR13: =RANDBETWEEN(2,9) -> 6 | FT13: 3 | FV13: 5 | FX13: 4 | GV13: 25) | GW13: =CONCATENATE(FR13,"b"," = ",FR13*RANDBETWEEN(2,9)) -> 6b = 48 | GX13: 26) | GY13: =CONCATENATE(FT13,"c"," = ",FT13*RANDBETWEEN(2,9)) -> 3c = 12 | GZ13: 27) | HA13: =CONCATENATE(FV13,"d"," = ",FV13*RANDBETWEEN(2,9)) -> 5d = 20 | HB13: 28) | HC13: =CONCATENATE(FX13,"e"," = ",FX13*RANDBETWEEN(2,9)) -> 4e = 8
FR17: 1 | FS17: + | FT17: =RANDBETWEEN(1,2) -> 1 | FU17: =VLOOKUP(FT17,FR17:FS18,2) -> + | FW17: =CONCATENATE("a"," ",FU17," ",RANDBETWEEN(2,9)," = ",RANDBETWEEN(2,9)) -> a + 2 = 7 | FX17: 1 | FY17: + | FZ17: =RANDBETWEEN(1,2) -> 2 | GA17: =VLOOKUP(FZ17,FX17:FY18,2) -> − | GC17: =CONCATENATE("b"," ",GA17," ",RANDBETWEEN(2,9)," = ",RANDBETWEEN(2,9)) -> b − 3 = 6 | GE17: 1 | GF17: + | GG17: =RANDBETWEEN(1,2) -> 1 | GH17: =VLOOKUP(GG17,GE17:GF18,2) -> + | GJ17: =CONCATENATE("c"," ",GH17," ",RANDBETWEEN(2,9)," = ",RANDBETWEEN(2,9)) -> c + 2 = 2 | GN17: 1 | GO17: + | GP17: =RANDBETWEEN(1,2) -> 2 | GQ17: =VLOOKUP(GP17,GN17:GO18,2) -> − | GS17: =CONCATENATE("d"," ",GQ17," ",RANDBETWEEN(2,9)," = ",RANDBETWEEN(2,9)) -> d − 4 = 2 | GV17: 1) | GW17: =FW17 -> a + 2 = 7 | GX17: 2) | GY17: =GC17 -> b − 3 = 6 | GZ17: 3) | HA17: =GJ17 -> c + 2 = 2 | HB17: 4) | HC17: =GS17 -> d − 4 = 2
FR18: 2 | FS18: − | FX18: 2 | FY18: − | GE18: 2 | GF18: − | GN18: 2 | GO18: −
FR19: 1 | FS19: + | FT19: =RANDBETWEEN(1,2) -> 2 | FU19: =VLOOKUP(FT19,FR19:FS20,2) -> − | FW19: =CONCATENATE("e"," ",FU19," ",RANDBETWEEN(2,9)," = ",RANDBETWEEN(2,9)) -> e − 3 = 7 | FX19: 1 | FY19: + | FZ19: =RANDBETWEEN(1,2) -> 1 | GA19: =VLOOKUP(FZ19,FX19:FY20,2) -> + | GC19: =CONCATENATE("f"," ",GA19," ",RANDBETWEEN(2,9)," = ",RANDBETWEEN(2,9)) -> f + 6 = 9 | GE19: 1 | GF19: + | GG19: =RANDBETWEEN(1,2) -> 2 | GH19: =VLOOKUP(GG19,GE19:GF20,2) -> − | GJ19: =CONCATENATE("g"," ",GH19," ",RANDBETWEEN(2,9)," = ",RANDBETWEEN(2,9)) -> g − 4 = 5 | GN19: 1 | GO19: + | GP19: =RANDBETWEEN(1,2) -> 2 | GQ19: =VLOOKUP(GP19,GN19:GO20,2) -> − | GS19: =CONCATENATE("h"," ",GQ19," ",RANDBETWEEN(2,9)," = ",RANDBETWEEN(2,9)) -> h − 8 = 3 | GV19: 5) | GW19: =FW19 -> e − 3 = 7 | GX19: 6) | GY19: =GC19 -> f + 6 = 9 | GZ19: 7) | HA19: =GJ19 -> g − 4 = 5 | HB19: 8) | HC19: =GS19 -> h − 8 = 3
FR20: 2 | FS20: − | FX20: 2 | FY20: − | GE20: 2 | GF20: − | GN20: 2 | GO20: −
FR21: 1 | FS21: + | FT21: =RANDBETWEEN(1,2) -> 1 | FU21: =VLOOKUP(FT21,FR21:FS22,2) -> + | FW21: =CONCATENATE("j"," ",FU21," ",RANDBETWEEN(2,9)," = ",RANDBETWEEN(2,9)) -> j + 5 = 3 | FX21: 1 | FY21: + | FZ21: =RANDBETWEEN(1,2) -> 1 | GA21: =VLOOKUP(FZ21,FX21:FY22,2) -> + | GC21: =CONCATENATE("k"," ",GA21," ",RANDBETWEEN(2,9)," = ",RANDBETWEEN(2,9)) -> k + 5 = 6 | GE21: 1 | GF21: + | GG21: =RANDBETWEEN(1,2) -> 2 | GH21: =VLOOKUP(GG21,GE21:GF22,2) -> − | GJ21: =CONCATENATE("m"," ",GH21," ",RANDBETWEEN(2,9)," = ",RANDBETWEEN(2,9)) -> m − 8 = 8 | GN21: 1 | GO21: + | GP21: =RANDBETWEEN(1,2) -> 1 | GQ21: =VLOOKUP(GP21,GN21:GO22,2) -> + | GS21: =CONCATENATE("n"," ",GQ21," ",RANDBETWEEN(2,9)," = ",RANDBETWEEN(2,9)) -> n + 8 = 5 | GV21: 9) | GW21: =FW21 -> j + 5 = 3 | GX21: 10) | GY21: =GC21 -> k + 5 = 6 | GZ21: 11) | HA21: =GJ21 -> m − 8 = 8 | HB21: 12) | HC21: n + 8 = 5
FR22: 2 | FS22: − | FX22: 2 | FY22: − | GE22: 2 | GF22: − | GN22: 2 | GO22: −
FR23: 1 | FS23: + | FT23: =RANDBETWEEN(1,2) -> 1 | FU23: =VLOOKUP(FT23,FR23:FS24,2) -> + | FW23: =CONCATENATE("p"," ",FU23," ",RANDBETWEEN(2,9)," = ",RANDBETWEEN(2,9)) -> p + 4 = 6 | FX23: 1 | FY23: + | FZ23: =RANDBETWEEN(1,2) -> 1 | GA23: =VLOOKUP(FZ23,FX23:FY24,2) -> + | GC23: =CONCATENATE("q"," ",GA23," ",RANDBETWEEN(2,9)," = ",RANDBETWEEN(2,9)) -> q + 6 = 7 | GE23: 1 | GF23: + | GG23: =RANDBETWEEN(1,2) -> 1 | GH23: =VLOOKUP(GG23,GE23:GF24,2) -> + | GJ23: =CONCATENATE("r"," ",GH23," ",RANDBETWEEN(2,9)," = ",RANDBETWEEN(2,9)) -> r + 6 = 4 | GN23: 1 | GO23: + | GP23: =RANDBETWEEN(1,2) -> 2 | GQ23: =VLOOKUP(GP23,GN23:GO24,2) -> − | GS23: =CONCATENATE("s"," ",GQ23," ",RANDBETWEEN(2,9)," = ",RANDBETWEEN(2,9)) -> s − 9 = 3 | GV23: 13) | GW23: =FW23 -> p + 4 = 6 | GX23: 14) | GY23: =GC23 -> q + 6 = 7 | GZ23: 15) | HA23: =GJ23 -> r + 6 = 4 | HB23: 16) | HC23: s − 9 = 3
FR24: 2 | FS24: − | FX24: 2 | FY24: − | GE24: 2 | GF24: − | GN24: 2 | GO24: −
FR25: 1 | FS25: + | FT25: =RANDBETWEEN(1,2) -> 2 | FU25: =VLOOKUP(FT25,FR25:FS26,2) -> − | FW25: =CONCATENATE("t"," ",FU25," ",RANDBETWEEN(2,9)," = ",RANDBETWEEN(2,9)) -> t − 6 = 4 | FX25: 1 | FY25: + | FZ25: =RANDBETWEEN(1,2) -> 2 | GA25: =VLOOKUP(FZ25,FX25:FY26,2) -> − | GC25: =CONCATENATE("u"," ",GA25," ",RANDBETWEEN(2,9)," = ",RANDBETWEEN(2,9)) -> u − 6 = 9 | GE25: 1 | GF25: + | GG25: =RANDBETWEEN(1,2) -> 1 | GH25: =VLOOKUP(GG25,GE25:GF26,2) -> + | GJ25: =CONCATENATE("v"," ",GH25," ",RANDBETWEEN(2,9)," = ",RANDBETWEEN(2,9)) -> v + 9 = 2 | GN25: 1 | GO25: + | GP25: =RANDBETWEEN(1,2) -> 2 | GQ25: =VLOOKUP(GP25,GN25:GO26,2) -> − | GS25: =CONCATENATE("w"," ",GQ25," ",RANDBETWEEN(2,9)," = ",RANDBETWEEN(2,9)) -> w − 5 = 2 | GV25: 17) | GW25: =FW25 -> t − 6 = 4 | GX25: 18) | GY25: =GC25 -> u − 6 = 9 | GZ25: 19) | HA25: =GJ25 -> v + 9 = 2 | HB25: 20) | HC25: w − 5 = 2
FR26: 2 | FS26: − | FX26: 2 | FY26: − | GE26: 2 | GF26: − | GN26: 2 | GO26: −
FR27: 1 | FS27: + | FT27: =RANDBETWEEN(1,2) -> 2 | FU27: =VLOOKUP(FT27,FR27:FS28,2) -> − | FW27: =CONCATENATE("x"," ",FU27," ",RANDBETWEEN(2,9)," = ",RANDBETWEEN(2,9)) -> x − 5 = 5 | FX27: 1 | FY27: + | FZ27: =RANDBETWEEN(1,2) -> 1 | GA27: =VLOOKUP(FZ27,FX27:FY28,2) -> + | GC27: =CONCATENATE("y"," ",GA27," ",RANDBETWEEN(2,9)," = ",RANDBETWEEN(2,9)) -> y + 3 = 4 | GE27: 1 | GF27: + | GG27: =RANDBETWEEN(1,2) -> 1 | GH27: =VLOOKUP(GG27,GE27:GF28,2) -> + | GJ27: =CONCATENATE("z"," ",GH27," ",RANDBETWEEN(2,9)," = ",RANDBETWEEN(2,9)) -> z + 3 = 7 | GN27: 1 | GO27: + | GP27: =RANDBETWEEN(1,2) -> 1 | GQ27: =VLOOKUP(GP27,GN27:GO28,2) -> + | GS27: =CONCATENATE("a"," ",GQ27," ",RANDBETWEEN(2,9)," = ",RANDBETWEEN(2,9)) -> a + 8 = 7 | GV27: 21) | GW27: =FW27 -> x − 5 = 5 | GX27: 22) | GY27: =GC27 -> y + 3 = 4 | GZ27: 23) | HA27: =GJ27 -> z + 3 = 7 | HB27: 24) | HC27: a + 8 = 7
FR28: 2 | FS28: − | FX28: 2 | FY28: − | GE28: 2 | GF28: − | GN28: 2 | GO28: −
FR29: 1 | FS29: + | FT29: =RANDBETWEEN(1,2) -> 2 | FU29: =VLOOKUP(FT29,FR29:FS30,2) -> − | FW29: =CONCATENATE("b"," ",FU29," ",RANDBETWEEN(2,9)," = ",RANDBETWEEN(2,9)) -> b − 7 = 8 | FX29: 1 | FY29: + | FZ29: =RANDBETWEEN(1,2) -> 2 | GA29: =VLOOKUP(FZ29,FX29:FY30,2) -> − | GC29: =CONCATENATE("c"," ",GA29," ",RANDBETWEEN(2,9)," = ",RANDBETWEEN(2,9)) -> c − 5 = 3 | GE29: 1 | GF29: + | GG29: =RANDBETWEEN(1,2) -> 1 | GH29: =VLOOKUP(GG29,GE29:GF30,2) -> + | GJ29: =CONCATENATE("d"," ",GH29," ",RANDBETWEEN(2,9)," = ",RANDBETWEEN(2,9)) -> d + 2 = 5 | GN29: 1 | GO29: + | GP29: =RANDBETWEEN(1,2) -> 1 | GQ29: =VLOOKUP(GP29,GN29:GO30,2) -> + | GS29: =CONCATENATE("e"," ",GQ29," ",RANDBETWEEN(2,9)," = ",RANDBETWEEN(2,9)) -> e + 6 = 2 | GV29: 25) | GW29: =FW29 -> b − 7 = 8 | GX29: 26) | GY29: =GC29 -> c − 5 = 3 | GZ29: 27) | HA29: =GJ29 -> d + 2 = 5 | HB29: 28) | HC29: e + 6 = 2
FR30: 2 | FS30: − | FX30: 2 | FY30: − | GE30: 2 | GF30: − | GN30: 2 | GO30: −

Sheet D1a (hidden)
FU2: f | FV2: x | FW2: fx | FZ2: f | GA2: x | GB2: fx | GE2: f | GF2: x | GG2: fx | GJ2: f | GK2: x | GL2: fx
FT3: 0 ≤ x < 10 | FU3: 6 | FY3: 1 ≤ x < 5 | FZ3: 11 | GD3: 0 ≤ x < 10 | GE3: 5 | GI3: 0 | GJ3: 2
FT4: 10 ≤ x < 20 | FU4: 5 | FY4: 5 ≤ x < 9 | FZ4: 6 | GD4: 10 ≤ x < 20 | GE4: 8 | GI4: 1 | GJ4: 4
FT5: 20 ≤ x < 30 | FU5: 9 | FY5: 9 ≤ x < 13 | FZ5: 15 | GD5: 20 ≤ x < 30 | GE5: 12 | GI5: 2 | GJ5: 8
FT6: 30 ≤ x < 40 | FU6: 2 | FY6: 13 ≤ x < 17 | FZ6: 24 | GD6: 30 ≤ x < 40 | GE6: 15 | GI6: 3 | GJ6: 10
FT7: 40 ≤ x < 50 | FU7: 15 | FY7: 17 ≤ x < 21 | FZ7: 18 | GD7: 40 ≤ x < 50 | GE7: 14 | GI7: 4 | GJ7: 12
FT8: 50 ≤ x < 60 | FU8: 8 | FY8: 21 ≤ x < 25 | FZ8: 8 | GD8: 50 ≤ x < 60 | GE8: 10 | GI8: 5 | GJ8: 8
FU10: ∑f = | FW10: ∑fx = | FZ10: ∑f = | GB10: ∑fx = | GE10: ∑f = | GG10: ∑fx = | GJ10: ∑f = | GL10: ∑fx =
FT12: Mean = ∑fx = | FY12: Mean = ∑fx = | GD12: Mean = ∑fx = | GI12: Mean = ∑fx =
FT13: ∑f | FY13: ∑f | GD13: ∑f | GI13: ∑f
FU17: f | FV17: x | FW17: fx | FZ17: f | GA17: x | GB17: fx | GE17: f | GF17: x | GG17: fx | GJ17: f | GK17: x | GL17: fx
FT18: 0 ≤ x < 10 | FU18: 1 | FY18: 1 ≤ x < 5 | FZ18: 14 | GD18: 0 ≤ x < 10 | GE18: 2 | GI18: 10 | GJ18: 5
FT19: 10 ≤ x < 20 | FU19: 4 | FY19: 5 ≤ x < 9 | FZ19: 16 | GD19: 10 ≤ x < 20 | GE19: 4 | GI19: 20 | GJ19: 6
FT20: 20 ≤ x < 30 | FU20: 6 | FY20: 9 ≤ x < 13 | FZ20: 20 | GD20: 20 ≤ x < 30 | GE20: 5 | GI20: 30 | GJ20: 7
FT21: 30 ≤ x < 40 | FU21: 8 | FY21: 13 ≤ x < 17 | FZ21: 24 | GD21: 30 ≤ x < 40 | GE21: 6 | GI21: 40 | GJ21: 10
FT22: 40 ≤ x < 50 | FU22: 12 | FY22: 17 ≤ x < 21 | FZ22: 20 | GD22: 40 ≤ x < 50 | GE22: 2 | GI22: 50 | GJ22: 9
FT23: 50 ≤ x < 60 | FU23: 10 | FY23: 21 ≤ x < 25 | FZ23: 10 | GD23: 50 ≤ x < 60 | GE23: 1
FU25: ∑f = | FW25: ∑fx = | FZ25: ∑f = | GB25: ∑fx = | GE25: ∑f = | GG25: ∑fx = | GJ25: ∑f = | GL25: ∑fx =
FT27: Mean = ∑fx = | FY27: Mean = ∑fx = | GD27: Mean = ∑fx = | GI27: Mean = ∑fx =
FT28: ∑f | FY28: ∑f | GD28: ∑f | GI28: ∑f

Sheet D1b (hidden)
G2: f | H2: Class Width | I2: Frequency Density | P2: f | Q2: Class Width | R2: Frequency Density | Y2: f | Z2: Class Width | AA2: Frequency Density
B3: 0 | C3: ≤ x < | D3: 5 | E3: =RANDBETWEEN(10,20) -> 15 | F3: =E3 -> 15 | G3: =ROUND(F3,0) -> 15 | H3: =D3-B3 -> 5 | I3: =G3/H3 -> 3 | K3: 0 | L3: ≤ x < | M3: 2 | N3: =RANDBETWEEN(10,20) -> 18 | O3: =N3 -> 18 | P3: =ROUND(O3,0) -> 18 | Q3: =M3-K3 -> 2 | R3: =P3/Q3 -> 9 | T3: 0 | U3: ≤ x < | V3: 10 | W3: =RANDBETWEEN(10,20) -> 20 | X3: =W3 -> 20 | Y3: =ROUND(X3,0) -> 20 | Z3: =V3-T3 -> 10 | AA3: =Y3/Z3 -> 2
B4: 5 | C4: ≤ x < | D4: 10 | E4: =E3 -> 15 | F4: =E4*RANDBETWEEN(10,20)/10 -> 27 | G4: =ROUND(F4,0) -> 27 | H4: =D4-B4 -> 5 | I4: =G4/H4 -> 5.4 | K4: 2 | L4: ≤ x < | M4: 6 | N4: =N3 -> 18 | O4: =N4*RANDBETWEEN(10,20)/10 -> 19.8 | P4: =ROUND(O4,0) -> 20 | Q4: =M4-K4 -> 4 | R4: =P4/Q4 -> 5 | T4: 10 | U4: ≤ x < | V4: 20 | W4: =W3 -> 20 | X4: =W4*RANDBETWEEN(10,20)/10 -> 28 | Y4: =ROUND(X4,0) -> 28 | Z4: =V4-T4 -> 10 | AA4: =Y4/Z4 -> 2.8
B5: 10 | C5: ≤ x < | D5: 20 | E5: =E4 -> 15 | F5: =E5*RANDBETWEEN(15,25)/10 -> 31.5 | G5: 32 | H5: 10 | I5: 3.2 | K5: 6 | L5: ≤ x < | M5: 10 | N5: =N4 -> 18 | O5: =N5*RANDBETWEEN(15,25)/10 -> 34.2 | P5: 34 | Q5: 4 | R5: 8.5 | T5: 20 | U5: ≤ x < | V5: 40 | W5: =W4 -> 20 | X5: =W5*RANDBETWEEN(15,25)/10 -> 40 | Y5: 40 | Z5: 20 | AA5: 2
B6: 20 | C6: ≤ x < | D6: 40 | E6: 15 | F6: =E6*RANDBETWEEN(20,30)/10 -> 33 | G6: 33 | H6: 20 | I6: 1.65 | K6: 10 | L6: ≤ x < | M6: 15 | N6: 18 | O6: =N6*RANDBETWEEN(20,30)/10 -> 54 | P6: 54 | Q6: 5 | R6: 10.8 | T6: 40 | U6: ≤ x < | V6: 60 | W6: 20 | X6: =W6*RANDBETWEEN(20,30)/10 -> 60 | Y6: 60 | Z6: 20 | AA6: 3
B7: 40 | C7: ≤ x < | D7: 55 | E7: 15 | F7: =E7*RANDBETWEEN(10,20)/10 -> 19.5 | G7: 20 | H7: 15 | I7: 1.333333333 | K7: 15 | L7: ≤ x < | M7: 25 | N7: 18 | O7: =N7*RANDBETWEEN(10,20)/10 -> 30.6 | P7: 31 | Q7: 10 | R7: 3.1 | T7: 60 | U7: ≤ x < | V7: 70 | W7: 20 | X7: =W7*RANDBETWEEN(10,20)/10 -> 22 | Y7: 22 | Z7: 10 | AA7: 2.2
B8: 55 | C8: ≤ x < | D8: 65 | E8: 15 | F8: =E8*RANDBETWEEN(1,10)/10 -> 7.5 | G8: 8 | H8: 10 | I8: 0.8 | K8: 25 | L8: ≤ x < | M8: 30 | N8: 18 | O8: =N8*RANDBETWEEN(1,10)/10 -> 9 | P8: 9 | Q8: 5 | R8: 1.8 | T8: 70 | U8: ≤ x < | V8: 75 | W8: 20 | X8: =W8*RANDBETWEEN(1,10)/10 -> 4 | Y8: 4 | Z8: 5 | AA8: 0.8
G10: f | H10: Class Width | I10: Frequency Density | P10: f | Q10: Class Width | R10: Frequency Density | Y10: f | Z10: Class Width | AA10: Frequency Density
B11: 0 | C11: ≤ x < | D11: 5 | E11: =RANDBETWEEN(10,20) -> 12 | F11: =E11 -> 12 | G11: =ROUND(F11,0) -> 12 | H11: =D11-B11 -> 5 | I11: =G11/H11 -> 2.4 | K11: 0 | L11: ≤ x < | M11: 2 | N11: =RANDBETWEEN(10,20) -> 17 | O11: =N11 -> 17 | P11: =ROUND(O11,0) -> 17 | Q11: =M11-K11 -> 2 | R11: =P11/Q11 -> 8.5 | T11: 0 | U11: ≤ x < | V11: 10 | W11: =RANDBETWEEN(10,20) -> 16 | X11: =W11 -> 16 | Y11: =ROUND(X11,0) -> 16 | Z11: =V11-T11 -> 10 | AA11: =Y11/Z11 -> 1.6
B12: 5 | C12: ≤ x < | D12: 10 | E12: =E11 -> 12 | F12: =E12*RANDBETWEEN(10,20)/10 -> 24 | G12: =ROUND(F12,0) -> 24 | H12: =D12-B12 -> 5 | I12: =G12/H12 -> 4.8 | K12: 2 | L12: ≤ x < | M12: 6 | N12: =N11 -> 17 | O12: =N12*RANDBETWEEN(10,20)/10 -> 18.7 | P12: =ROUND(O12,0) -> 19 | Q12: =M12-K12 -> 4 | R12: =P12/Q12 -> 4.75 | T12: 10 | U12: ≤ x < | V12: 20 | W12: =W11 -> 16 | X12: =W12*RANDBETWEEN(10,20)/10 -> 27.2 | Y12: =ROUND(X12,0) -> 27 | Z12: =V12-T12 -> 10 | AA12: =Y12/Z12 -> 2.7
B13: 10 | C13: ≤ x < | D13: 20 | E13: =E12 -> 12 | F13: =E13*RANDBETWEEN(15,25)/10 -> 21.6 | G13: 22 | H13: 10 | I13: 2.2 | K13: 6 | L13: ≤ x < | M13: 10 | N13: =N12 -> 17 | O13: =N13*RANDBETWEEN(15,25)/10 -> 25.5 | P13: 26 | Q13: 4 | R13: 6.5 | T13: 20 | U13: ≤ x < | V13: 40 | W13: =W12 -> 16 | X13: =W13*RANDBETWEEN(15,25)/10 -> 36.8 | Y13: 37 | Z13: 20 | AA13: 1.85
B14: 20 | C14: ≤ x < | D14: 40 | E14: 12 | F14: =E14*RANDBETWEEN(20,30)/10 -> 28.8 | G14: 29 | H14: 20 | I14: 1.45 | K14: 10 | L14: ≤ x < | M14: 15 | N14: 17 | O14: =N14*RANDBETWEEN(20,30)/10 -> 51 | P14: 51 | Q14: 5 | R14: 10.2 | T14: 40 | U14: ≤ x < | V14: 60 | W14: 16 | X14: =W14*RANDBETWEEN(20,30)/10 -> 46.4 | Y14: 46 | Z14: 20 | AA14: 2.3
B15: 40 | C15: ≤ x < | D15: 55 | E15: 12 | F15: =E15*RANDBETWEEN(10,20)/10 -> 18 | G15: 18 | H15: 15 | I15: 1.2 | K15: 15 | L15: ≤ x < | M15: 25 | N15: 17 | O15: =N15*RANDBETWEEN(10,20)/10 -> 30.6 | P15: 31 | Q15: 10 | R15: 3.1 | T15: 60 | U15: ≤ x < | V15: 70 | W15: 16 | X15: =W15*RANDBETWEEN(10,20)/10 -> 17.6 | Y15: 18 | Z15: 10 | AA15: 1.8
B16: 55 | C16: ≤ x < | D16: 65 | E16: 12 | F16: =E16*RANDBETWEEN(1,10)/10 -> 4.8 | G16: 5 | H16: 10 | I16: 0.5 | K16: 25 | L16: ≤ x < | M16: 30 | N16: 17 | O16: =N16*RANDBETWEEN(1,10)/10 -> 13.6 | P16: 14 | Q16: 5 | R16: 2.8 | T16: 70 | U16: ≤ x < | V16: 75 | W16: 16 | X16: =W16*RANDBETWEEN(1,10)/10 -> 6.4 | Y16: 6 | Z16: 5 | AA16: 1.2
G18: f | H18: Class Width | I18: Frequency Density | P18: f | Q18: Class Width | R18: Frequency Density | Y18: f | Z18: Class Width | AA18: Frequency Density
B19: 0 | C19: ≤ x < | D19: 5 | E19: =RANDBETWEEN(10,20) -> 13 | F19: =E19 -> 13 | G19: =ROUND(F19,0) -> 13 | H19: =D19-B19 -> 5 | I19: =G19/H19 -> 2.6 | K19: 0 | L19: ≤ x < | M19: 2 | N19: =RANDBETWEEN(10,20) -> 12 | O19: =N19 -> 12 | P19: =ROUND(O19,0) -> 12 | Q19: =M19-K19 -> 2 | R19: =P19/Q19 -> 6 | T19: 0 | U19: ≤ x < | V19: 10 | W19: =RANDBETWEEN(10,20) -> 15 | X19: =W19 -> 15 | Y19: =ROUND(X19,0) -> 15 | Z19: =V19-T19 -> 10 | AA19: =Y19/Z19 -> 1.5
B20: 5 | C20: ≤ x < | D20: 10 | E20: =E19 -> 13 | F20: =E20*RANDBETWEEN(10,20)/10 -> 24.7 | G20: =ROUND(F20,0) -> 25 | H20: =D20-B20 -> 5 | I20: =G20/H20 -> 5 | K20: 2 | L20: ≤ x < | M20: 6 | N20: =N19 -> 12 | O20: =N20*RANDBETWEEN(10,20)/10 -> 20.4 | P20: =ROUND(O20,0) -> 20 | Q20: =M20-K20 -> 4 | R20: =P20/Q20 -> 5 | T20: 10 | U20: ≤ x < | V20: 20 | W20: =W19 -> 15 | X20: =W20*RANDBETWEEN(10,20)/10 -> 15 | Y20: =ROUND(X20,0) -> 15 | Z20: =V20-T20 -> 10 | AA20: =Y20/Z20 -> 1.5
B21: 10 | C21: ≤ x < | D21: 20 | E21: =E20 -> 13 | F21: =E21*RANDBETWEEN(15,25)/10 -> 24.7 | G21: 25 | H21: 10 | I21: 2.5 | K21: 6 | L21: ≤ x < | M21: 10 | N21: =N20 -> 12 | O21: =N21*RANDBETWEEN(15,25)/10 -> 24 | P21: 24 | Q21: 4 | R21: 6 | T21: 20 | U21: ≤ x < | V21: 40 | W21: =W20 -> 15 | X21: =W21*RANDBETWEEN(15,25)/10 -> 27 | Y21: 27 | Z21: 20 | AA21: 1.35
B22: 20 | C22: ≤ x < | D22: 40 | E22: 13 | F22: =E22*RANDBETWEEN(20,30)/10 -> 32.5 | G22: 33 | H22: 20 | I22: 1.65 | K22: 10 | L22: ≤ x < | M22: 15 | N22: 12 | O22: =N22*RANDBETWEEN(20,30)/10 -> 33.6 | P22: 34 | Q22: 5 | R22: 6.8 | T22: 40 | U22: ≤ x < | V22: 60 | W22: 15 | X22: =W22*RANDBETWEEN(20,30)/10 -> 43.5 | Y22: 44 | Z22: 20 | AA22: 2.2
B23: 40 | C23: ≤ x < | D23: 55 | E23: 13 | F23: =E23*RANDBETWEEN(10,20)/10 -> 24.7 | G23: 25 | H23: 15 | I23: 1.666666667 | K23: 15 | L23: ≤ x < | M23: 25 | N23: 12 | O23: =N23*RANDBETWEEN(10,20)/10 -> 24 | P23: 24 | Q23: 10 | R23: 2.4 | T23: 60 | U23: ≤ x < | V23: 70 | W23: 15 | X23: =W23*RANDBETWEEN(10,20)/10 -> 30 | Y23: 30 | Z23: 10 | AA23: 3
B24: 55 | C24: ≤ x < | D24: 65 | E24: 13 | F24: =E24*RANDBETWEEN(1,10)/10 -> 2.6 | G24: 3 | H24: 10 | I24: 0.3 | K24: 25 | L24: ≤ x < | M24: 30 | N24: 12 | O24: =N24*RANDBETWEEN(1,10)/10 -> 7.2 | P24: 7 | Q24: 5 | R24: 1.4 | T24: 70 | U24: ≤ x < | V24: 75 | W24: 15 | X24: =W24*RANDBETWEEN(1,10)/10 -> 10.5 | Y24: 11 | Z24: 5 | AA24: 2.2
G26: f | H26: Class Width | I26: Frequency Density | P26: f | Q26: Class Width | R26: Frequency Density | Y26: f | Z26: Class Width | AA26: Frequency Density
B27: 0 | C27: ≤ x < | D27: 5 | E27: =RANDBETWEEN(10,20) -> 11 | F27: =E27 -> 11 | G27: =ROUND(F27,0) -> 11 | H27: =D27-B27 -> 5 | I27: =G27/H27 -> 2.2 | K27: 0 | L27: ≤ x < | M27: 2 | N27: =RANDBETWEEN(10,20) -> 20 | O27: =N27 -> 20 | P27: =ROUND(O27,0) -> 20 | Q27: =M27-K27 -> 2 | R27: =P27/Q27 -> 10 | T27: 0 | U27: ≤ x < | V27: 10 | W27: =RANDBETWEEN(10,20) -> 19 | X27: =W27 -> 19 | Y27: =ROUND(X27,0) -> 19 | Z27: =V27-T27 -> 10 | AA27: =Y27/Z27 -> 1.9
B28: 5 | C28: ≤ x < | D28: 10 | E28: =E27 -> 11 | F28: =E28*RANDBETWEEN(10,20)/10 -> 19.8 | G28: =ROUND(F28,0) -> 20 | H28: =D28-B28 -> 5 | I28: =G28/H28 -> 4 | K28: 2 | L28: ≤ x < | M28: 6 | N28: =N27 -> 20 | O28: =N28*RANDBETWEEN(10,20)/10 -> 38 | P28: =ROUND(O28,0) -> 38 | Q28: =M28-K28 -> 4 | R28: =P28/Q28 -> 9.5 | T28: 10 | U28: ≤ x < | V28: 20 | W28: =W27 -> 19 | X28: =W28*RANDBETWEEN(10,20)/10 -> 28.5 | Y28: =ROUND(X28,0) -> 29 | Z28: =V28-T28 -> 10 | AA28: =Y28/Z28 -> 2.9
B29: 10 | C29: ≤ x < | D29: 20 | E29: =E28 -> 11 | F29: =E29*RANDBETWEEN(15,25)/10 -> 26.4 | G29: 26 | H29: 10 | I29: 2.6 | K29: 6 | L29: ≤ x < | M29: 10 | N29: =N28 -> 20 | O29: =N29*RANDBETWEEN(15,25)/10 -> 36 | P29: 36 | Q29: 4 | R29: 9 | T29: 20 | U29: ≤ x < | V29: 40 | W29: =W28 -> 19 | X29: =W29*RANDBETWEEN(15,25)/10 -> 28.5 | Y29: 29 | Z29: 20 | AA29: 1.45
B30: 20 | C30: ≤ x < | D30: 40 | E30: 11 | F30: =E30*RANDBETWEEN(20,30)/10 -> 30.8 | G30: 31 | H30: 20 | I30: 1.55 | K30: 10 | L30: ≤ x < | M30: 15 | N30: 20 | O30: =N30*RANDBETWEEN(20,30)/10 -> 60 | P30: 60 | Q30: 5 | R30: 12 | T30: 40 | U30: ≤ x < | V30: 60 | W30: 19 | X30: =W30*RANDBETWEEN(20,30)/10 -> 41.8 | Y30: 42 | Z30: 20 | AA30: 2.1
B31: 40 | C31: ≤ x < | D31: 55 | E31: 11 | F31: =E31*RANDBETWEEN(10,20)/10 -> 15.4 | G31: 15 | H31: 15 | I31: 1 | K31: 15 | L31: ≤ x < | M31: 25 | N31: 20 | O31: =N31*RANDBETWEEN(10,20)/10 -> 34 | P31: 34 | Q31: 10 | R31: 3.4 | T31: 60 | U31: ≤ x < | V31: 70 | W31: 19 | X31: =W31*RANDBETWEEN(10,20)/10 -> 32.3 | Y31: 32 | Z31: 10 | AA31: 3.2
B32: 55 | C32: ≤ x < | D32: 65 | E32: 11 | F32: =E32*RANDBETWEEN(1,10)/10 -> 9.9 | G32: 10 | H32: 10 | I32: 1 | K32: 25 | L32: ≤ x < | M32: 30 | N32: 20 | O32: =N32*RANDBETWEEN(1,10)/10 -> 10 | P32: 10 | Q32: 5 | R32: 2 | T32: 70 | U32: ≤ x < | V32: 75 | W32: 19 | X32: =W32*RANDBETWEEN(1,10)/10 -> 13.3 | Y32: 13 | Z32: 5 | AA32: 2.6
G34: f | H34: Class Width | I34: Frequency Density | P34: f | Q34: Class Width | R34: Frequency Density | Y34: f | Z34: Class Width | AA34: Frequency Density
B35: 0 | C35: ≤ x < | D35: 5 | E35: =RANDBETWEEN(10,20) -> 11 | F35: =E35 -> 11 | G35: =ROUND(F35,0) -> 11 | H35: =D35-B35 -> 5 | I35: =G35/H35 -> 2.2 | K35: 0 | L35: ≤ x < | M35: 2 | N35: =RANDBETWEEN(10,20) -> 18 | O35: =N35 -> 18 | P35: =ROUND(O35,0) -> 18 | Q35: =M35-K35 -> 2 | R35: =P35/Q35 -> 9 | T35: 0 | U35: ≤ x < | V35: 10 | W35: =RANDBETWEEN(10,20) -> 15 | X35: =W35 -> 15 | Y35: =ROUND(X35,0) -> 15 | Z35: =V35-T35 -> 10 | AA35: =Y35/Z35 -> 1.5
B36: 5 | C36: ≤ x < | D36: 10 | E36: =E35 -> 11 | F36: =E36*RANDBETWEEN(10,20)/10 -> 12.1 | G36: =ROUND(F36,0) -> 12 | H36: =D36-B36 -> 5 | I36: =G36/H36 -> 2.4 | K36: 2 | L36: ≤ x < | M36: 6 | N36: =N35 -> 18 | O36: =N36*RANDBETWEEN(10,20)/10 -> 34.2 | P36: =ROUND(O36,0) -> 34 | Q36: =M36-K36 -> 4 | R36: =P36/Q36 -> 8.5 | T36: 10 | U36: ≤ x < | V36: 20 | W36: =W35 -> 15 | X36: =W36*RANDBETWEEN(10,20)/10 -> 28.5 | Y36: =ROUND(X36,0) -> 29 | Z36: =V36-T36 -> 10 | AA36: =Y36/Z36 -> 2.9
B37: 10 | C37: ≤ x < | D37: 20 | E37: =E36 -> 11 | F37: =E37*RANDBETWEEN(15,25)/10 -> 23.1 | G37: 23 | H37: 10 | I37: 2.3 | K37: 6 | L37: ≤ x < | M37: 10 | N37: =N36 -> 18 | O37: =N37*RANDBETWEEN(15,25)/10 -> 41.4 | P37: 41 | Q37: 4 | R37: 10.25 | T37: 20 | U37: ≤ x < | V37: 40 | W37: =W36 -> 15 | X37: =W37*RANDBETWEEN(15,25)/10 -> 33 | Y37: 33 | Z37: 20 | AA37: 1.65
B38: 20 | C38: ≤ x < | D38: 40 | E38: 11 | F38: =E38*RANDBETWEEN(20,30)/10 -> 27.5 | G38: 28 | H38: 20 | I38: 1.4 | K38: 10 | L38: ≤ x < | M38: 15 | N38: 18 | O38: =N38*RANDBETWEEN(20,30)/10 -> 45 | P38: 45 | Q38: 5 | R38: 9 | T38: 40 | U38: ≤ x < | V38: 60 | W38: 15 | X38: =W38*RANDBETWEEN(20,30)/10 -> 45 | Y38: 45 | Z38: 20 | AA38: 2.25
B39: 40 | C39: ≤ x < | D39: 55 | E39: 11 | F39: =E39*RANDBETWEEN(10,20)/10 -> 19.8 | G39: 20 | H39: 15 | I39: 1.333333333 | K39: 15 | L39: ≤ x < | M39: 25 | N39: 18 | O39: =N39*RANDBETWEEN(10,20)/10 -> 28.8 | P39: 29 | Q39: 10 | R39: 2.9 | T39: 60 | U39: ≤ x < | V39: 70 | W39: 15 | X39: =W39*RANDBETWEEN(10,20)/10 -> 24 | Y39: 24 | Z39: 10 | AA39: 2.4
B40: 55 | C40: ≤ x < | D40: 65 | E40: 11 | F40: =E40*RANDBETWEEN(1,10)/10 -> 1.1 | G40: 1 | H40: 10 | I40: 0.1 | K40: 25 | L40: ≤ x < | M40: 30 | N40: 18 | O40: =N40*RANDBETWEEN(1,10)/10 -> 16.2 | P40: 16 | Q40: 5 | R40: 3.2 | T40: 70 | U40: ≤ x < | V40: 75 | W40: 15 | X40: =W40*RANDBETWEEN(1,10)/10 -> 1.5 | Y40: 2 | Z40: 5 | AA40: 0.4

Sheet D1b answers (hidden)
G2: f | H2: Class Width | I2: Frequency Density | P2: f | Q2: Class Width | R2: Frequency Density | Y2: f | Z2: Class Width | AA2: Frequency Density
B3: 0 | C3: ≤ x < | D3: 5 | E3: =D1b!E3 -> 15 | F3: =D1b!F3 -> 15 | G3: =ROUND(F3,0) -> 15 | H3: =D3-B3 -> 5 | I3: =G3/H3 -> 3 | K3: 0 | L3: ≤ x < | M3: 2 | N3: =D1b!N3 -> 18 | O3: =D1b!O3 -> 18 | P3: =ROUND(O3,0) -> 18 | Q3: =M3-K3 -> 2 | R3: =P3/Q3 -> 9 | T3: 0 | U3: ≤ x < | V3: 10 | W3: =D1b!W3 -> 20 | X3: =D1b!X3 -> 20 | Y3: =ROUND(X3,0) -> 20 | Z3: =V3-T3 -> 10 | AA3: =Y3/Z3 -> 2
B4: 5 | C4: ≤ x < | D4: 10 | E4: =D1b!E4 -> 15 | F4: =D1b!F4 -> 27 | G4: =ROUND(F4,0) -> 27 | H4: =D4-B4 -> 5 | I4: =G4/H4 -> 5.4 | K4: 2 | L4: ≤ x < | M4: 6 | N4: =D1b!N4 -> 18 | O4: =D1b!O4 -> 19.8 | P4: =ROUND(O4,0) -> 20 | Q4: =M4-K4 -> 4 | R4: =P4/Q4 -> 5 | T4: 10 | U4: ≤ x < | V4: 20 | W4: =D1b!W4 -> 20 | X4: =D1b!X4 -> 28 | Y4: =ROUND(X4,0) -> 28 | Z4: =V4-T4 -> 10 | AA4: =Y4/Z4 -> 2.8
B5: 10 | C5: ≤ x < | D5: 20 | E5: =D1b!E5 -> 15 | F5: =D1b!F5 -> 31.5 | G5: 32 | H5: 10 | I5: 3.2 | K5: 6 | L5: ≤ x < | M5: 10 | N5: =D1b!N5 -> 18 | O5: =D1b!O5 -> 34.2 | P5: 34 | Q5: 4 | R5: 8.5 | T5: 20 | U5: ≤ x < | V5: 40 | W5: =D1b!W5 -> 20 | X5: =D1b!X5 -> 40 | Y5: 40 | Z5: 20 | AA5: 2
B6: 20 | C6: ≤ x < | D6: 40 | E6: =D1b!E6 -> 15 | F6: =D1b!F6 -> 33 | G6: 33 | H6: 20 | I6: 1.65 | K6: 10 | L6: ≤ x < | M6: 15 | N6: =D1b!N6 -> 18 | O6: =D1b!O6 -> 54 | P6: 54 | Q6: 5 | R6: 10.8 | T6: 40 | U6: ≤ x < | V6: 60 | W6: =D1b!W6 -> 20 | X6: =D1b!X6 -> 60 | Y6: 60 | Z6: 20 | AA6: 3
B7: 40 | C7: ≤ x < | D7: 55 | E7: =D1b!E7 -> 15 | F7: =D1b!F7 -> 19.5 | G7: 20 | H7: 15 | I7: 1.333333333 | K7: 15 | L7: ≤ x < | M7: 25 | N7: =D1b!N7 -> 18 | O7: =D1b!O7 -> 30.6 | P7: 31 | Q7: 10 | R7: 3.1 | T7: 60 | U7: ≤ x < | V7: 70 | W7: =D1b!W7 -> 20 | X7: =D1b!X7 -> 22 | Y7: 22 | Z7: 10 | AA7: 2.2
B8: 55 | C8: ≤ x < | D8: 65 | E8: =D1b!E8 -> 15 | F8: =D1b!F8 -> 7.5 | G8: 8 | H8: 10 | I8: 0.8 | K8: 25 | L8: ≤ x < | M8: 30 | N8: =D1b!N8 -> 18 | O8: =D1b!O8 -> 9 | P8: 9 | Q8: 5 | R8: 1.8 | T8: 70 | U8: ≤ x < | V8: 75 | W8: =D1b!W8 -> 20 | X8: =D1b!X8 -> 4 | Y8: 4 | Z8: 5 | AA8: 0.8
G10: f | H10: Class Width | I10: Frequency Density | P10: f | Q10: Class Width | R10: Frequency Density | Y10: f | Z10: Class Width | AA10: Frequency Density
B11: 0 | C11: ≤ x < | D11: 5 | E11: =D1b!E11 -> 12 | F11: =D1b!F11 -> 12 | G11: =ROUND(F11,0) -> 12 | H11: =D11-B11 -> 5 | I11: =G11/H11 -> 2.4 | K11: 0 | L11: ≤ x < | M11: 2 | N11: =D1b!N11 -> 17 | O11: =D1b!O11 -> 17 | P11: =ROUND(O11,0) -> 17 | Q11: =M11-K11 -> 2 | R11: =P11/Q11 -> 8.5 | T11: 0 | U11: ≤ x < | V11: 10 | W11: =D1b!W11 -> 16 | X11: =D1b!X11 -> 16 | Y11: =ROUND(X11,0) -> 16 | Z11: =V11-T11 -> 10 | AA11: =Y11/Z11 -> 1.6
B12: 5 | C12: ≤ x < | D12: 10 | E12: =D1b!E12 -> 12 | F12: =D1b!F12 -> 24 | G12: =ROUND(F12,0) -> 24 | H12: =D12-B12 -> 5 | I12: =G12/H12 -> 4.8 | K12: 2 | L12: ≤ x < | M12: 6 | N12: =D1b!N12 -> 17 | O12: =D1b!O12 -> 18.7 | P12: =ROUND(O12,0) -> 19 | Q12: =M12-K12 -> 4 | R12: =P12/Q12 -> 4.75 | T12: 10 | U12: ≤ x < | V12: 20 | W12: =D1b!W12 -> 16 | X12: =D1b!X12 -> 27.2 | Y12: =ROUND(X12,0) -> 27 | Z12: =V12-T12 -> 10 | AA12: =Y12/Z12 -> 2.7
B13: 10 | C13: ≤ x < | D13: 20 | E13: =D1b!E13 -> 12 | F13: =D1b!F13 -> 21.6 | G13: 22 | H13: 10 | I13: 2.2 | K13: 6 | L13: ≤ x < | M13: 10 | N13: =D1b!N13 -> 17 | O13: =D1b!O13 -> 25.5 | P13: 26 | Q13: 4 | R13: 6.5 | T13: 20 | U13: ≤ x < | V13: 40 | W13: =D1b!W13 -> 16 | X13: =D1b!X13 -> 36.8 | Y13: 37 | Z13: 20 | AA13: 1.85
B14: 20 | C14: ≤ x < | D14: 40 | E14: =D1b!E14 -> 12 | F14: =D1b!F14 -> 28.8 | G14: 29 | H14: 20 | I14: 1.45 | K14: 10 | L14: ≤ x < | M14: 15 | N14: =D1b!N14 -> 17 | O14: =D1b!O14 -> 51 | P14: 51 | Q14: 5 | R14: 10.2 | T14: 40 | U14: ≤ x < | V14: 60 | W14: =D1b!W14 -> 16 | X14: =D1b!X14 -> 46.4 | Y14: 46 | Z14: 20 | AA14: 2.3
B15: 40 | C15: ≤ x < | D15: 55 | E15: =D1b!E15 -> 12 | F15: =D1b!F15 -> 18 | G15: 18 | H15: 15 | I15: 1.2 | K15: 15 | L15: ≤ x < | M15: 25 | N15: =D1b!N15 -> 17 | O15: =D1b!O15 -> 30.6 | P15: 31 | Q15: 10 | R15: 3.1 | T15: 60 | U15: ≤ x < | V15: 70 | W15: =D1b!W15 -> 16 | X15: =D1b!X15 -> 17.6 | Y15: 18 | Z15: 10 | AA15: 1.8
B16: 55 | C16: ≤ x < | D16: 65 | E16: =D1b!E16 -> 12 | F16: =D1b!F16 -> 4.8 | G16: 5 | H16: 10 | I16: 0.5 | K16: 25 | L16: ≤ x < | M16: 30 | N16: =D1b!N16 -> 17 | O16: =D1b!O16 -> 13.6 | P16: 14 | Q16: 5 | R16: 2.8 | T16: 70 | U16: ≤ x < | V16: 75 | W16: =D1b!W16 -> 16 | X16: =D1b!X16 -> 6.4 | Y16: 6 | Z16: 5 | AA16: 1.2
G18: f | H18: Class Width | I18: Frequency Density | P18: f | Q18: Class Width | R18: Frequency Density | Y18: f | Z18: Class Width | AA18: Frequency Density
B19: 0 | C19: ≤ x < | D19: 5 | E19: =D1b!E19 -> 13 | F19: =D1b!F19 -> 13 | G19: =ROUND(F19,0) -> 13 | H19: =D19-B19 -> 5 | I19: =G19/H19 -> 2.6 | K19: 0 | L19: ≤ x < | M19: 2 | N19: =D1b!N19 -> 12 | O19: =D1b!O19 -> 12 | P19: =ROUND(O19,0) -> 12 | Q19: =M19-K19 -> 2 | R19: =P19/Q19 -> 6 | T19: 0 | U19: ≤ x < | V19: 10 | W19: =D1b!W19 -> 15 | X19: =D1b!X19 -> 15 | Y19: =ROUND(X19,0) -> 15 | Z19: =V19-T19 -> 10 | AA19: =Y19/Z19 -> 1.5
B20: 5 | C20: ≤ x < | D20: 10 | E20: =D1b!E20 -> 13 | F20: =D1b!F20 -> 24.7 | G20: =ROUND(F20,0) -> 25 | H20: =D20-B20 -> 5 | I20: =G20/H20 -> 5 | K20: 2 | L20: ≤ x < | M20: 6 | N20: =D1b!N20 -> 12 | O20: =D1b!O20 -> 20.4 | P20: =ROUND(O20,0) -> 20 | Q20: =M20-K20 -> 4 | R20: =P20/Q20 -> 5 | T20: 10 | U20: ≤ x < | V20: 20 | W20: =D1b!W20 -> 15 | X20: =D1b!X20 -> 15 | Y20: =ROUND(X20,0) -> 15 | Z20: =V20-T20 -> 10 | AA20: =Y20/Z20 -> 1.5
B21: 10 | C21: ≤ x < | D21: 20 | E21: =D1b!E21 -> 13 | F21: =D1b!F21 -> 24.7 | G21: 25 | H21: 10 | I21: 2.5 | K21: 6 | L21: ≤ x < | M21: 10 | N21: =D1b!N21 -> 12 | O21: =D1b!O21 -> 24 | P21: 24 | Q21: 4 | R21: 6 | T21: 20 | U21: ≤ x < | V21: 40 | W21: =D1b!W21 -> 15 | X21: =D1b!X21 -> 27 | Y21: 27 | Z21: 20 | AA21: 1.35
B22: 20 | C22: ≤ x < | D22: 40 | E22: =D1b!E22 -> 13 | F22: =D1b!F22 -> 32.5 | G22: 33 | H22: 20 | I22: 1.65 | K22: 10 | L22: ≤ x < | M22: 15 | N22: =D1b!N22 -> 12 | O22: =D1b!O22 -> 33.6 | P22: 34 | Q22: 5 | R22: 6.8 | T22: 40 | U22: ≤ x < | V22: 60 | W22: =D1b!W22 -> 15 | X22: =D1b!X22 -> 43.5 | Y22: 44 | Z22: 20 | AA22: 2.2
B23: 40 | C23: ≤ x < | D23: 55 | E23: =D1b!E23 -> 13 | F23: =D1b!F23 -> 24.7 | G23: 25 | H23: 15 | I23: 1.666666667 | K23: 15 | L23: ≤ x < | M23: 25 | N23: =D1b!N23 -> 12 | O23: =D1b!O23 -> 24 | P23: 24 | Q23: 10 | R23: 2.4 | T23: 60 | U23: ≤ x < | V23: 70 | W23: =D1b!W23 -> 15 | X23: =D1b!X23 -> 30 | Y23: 30 | Z23: 10 | AA23: 3
B24: 55 | C24: ≤ x < | D24: 65 | E24: =D1b!E24 -> 13 | F24: =D1b!F24 -> 2.6 | G24: 3 | H24: 10 | I24: 0.3 | K24: 25 | L24: ≤ x < | M24: 30 | N24: =D1b!N24 -> 12 | O24: =D1b!O24 -> 7.2 | P24: 7 | Q24: 5 | R24: 1.4 | T24: 70 | U24: ≤ x < | V24: 75 | W24: =D1b!W24 -> 15 | X24: =D1b!X24 -> 10.5 | Y24: 11 | Z24: 5 | AA24: 2.2
G26: f | H26: Class Width | I26: Frequency Density | P26: f | Q26: Class Width | R26: Frequency Density | Y26: f | Z26: Class Width | AA26: Frequency Density
B27: 0 | C27: ≤ x < | D27: 5 | E27: =D1b!E27 -> 11 | F27: =D1b!F27 -> 11 | G27: =ROUND(F27,0) -> 11 | H27: =D27-B27 -> 5 | I27: =G27/H27 -> 2.2 | K27: 0 | L27: ≤ x < | M27: 2 | N27: =D1b!N27 -> 20 | O27: =D1b!O27 -> 20 | P27: =ROUND(O27,0) -> 20 | Q27: =M27-K27 -> 2 | R27: =P27/Q27 -> 10 | T27: 0 | U27: ≤ x < | V27: 10 | W27: =D1b!W27 -> 19 | X27: =D1b!X27 -> 19 | Y27: =ROUND(X27,0) -> 19 | Z27: =V27-T27 -> 10 | AA27: =Y27/Z27 -> 1.9
B28: 5 | C28: ≤ x < | D28: 10 | E28: =D1b!E28 -> 11 | F28: =D1b!F28 -> 19.8 | G28: =ROUND(F28,0) -> 20 | H28: =D28-B28 -> 5 | I28: =G28/H28 -> 4 | K28: 2 | L28: ≤ x < | M28: 6 | N28: =D1b!N28 -> 20 | O28: =D1b!O28 -> 38 | P28: =ROUND(O28,0) -> 38 | Q28: =M28-K28 -> 4 | R28: =P28/Q28 -> 9.5 | T28: 10 | U28: ≤ x < | V28: 20 | W28: =D1b!W28 -> 19 | X28: =D1b!X28 -> 28.5 | Y28: =ROUND(X28,0) -> 29 | Z28: =V28-T28 -> 10 | AA28: =Y28/Z28 -> 2.9
B29: 10 | C29: ≤ x < | D29: 20 | E29: =D1b!E29 -> 11 | F29: =D1b!F29 -> 26.4 | G29: 26 | H29: 10 | I29: 2.6 | K29: 6 | L29: ≤ x < | M29: 10 | N29: =D1b!N29 -> 20 | O29: =D1b!O29 -> 36 | P29: 36 | Q29: 4 | R29: 9 | T29: 20 | U29: ≤ x < | V29: 40 | W29: =D1b!W29 -> 19 | X29: =D1b!X29 -> 28.5 | Y29: 29 | Z29: 20 | AA29: 1.45
B30: 20 | C30: ≤ x < | D30: 40 | E30: =D1b!E30 -> 11 | F30: =D1b!F30 -> 30.8 | G30: 31 | H30: 20 | I30: 1.55 | K30: 10 | L30: ≤ x < | M30: 15 | N30: =D1b!N30 -> 20 | O30: =D1b!O30 -> 60 | P30: 60 | Q30: 5 | R30: 12 | T30: 40 | U30: ≤ x < | V30: 60 | W30: =D1b!W30 -> 19 | X30: =D1b!X30 -> 41.8 | Y30: 42 | Z30: 20 | AA30: 2.1
B31: 40 | C31: ≤ x < | D31: 55 | E31: =D1b!E31 -> 11 | F31: =D1b!F31 -> 15.4 | G31: 15 | H31: 15 | I31: 1 | K31: 15 | L31: ≤ x < | M31: 25 | N31: =D1b!N31 -> 20 | O31: =D1b!O31 -> 34 | P31: 34 | Q31: 10 | R31: 3.4 | T31: 60 | U31: ≤ x < | V31: 70 | W31: =D1b!W31 -> 19 | X31: =D1b!X31 -> 32.3 | Y31: 32 | Z31: 10 | AA31: 3.2
B32: 55 | C32: ≤ x < | D32: 65 | E32: =D1b!E32 -> 11 | F32: =D1b!F32 -> 9.9 | G32: 10 | H32: 10 | I32: 1 | K32: 25 | L32: ≤ x < | M32: 30 | N32: =D1b!N32 -> 20 | O32: =D1b!O32 -> 10 | P32: 10 | Q32: 5 | R32: 2 | T32: 70 | U32: ≤ x < | V32: 75 | W32: =D1b!W32 -> 19 | X32: =D1b!X32 -> 13.3 | Y32: 13 | Z32: 5 | AA32: 2.6
G34: f | H34: Class Width | I34: Frequency Density | P34: f | Q34: Class Width | R34: Frequency Density | Y34: f | Z34: Class Width | AA34: Frequency Density
B35: 0 | C35: ≤ x < | D35: 5 | E35: =D1b!E35 -> 11 | F35: =D1b!F35 -> 11 | G35: =ROUND(F35,0) -> 11 | H35: =D35-B35 -> 5 | I35: =G35/H35 -> 2.2 | K35: 0 | L35: ≤ x < | M35: 2 | N35: =D1b!N35 -> 18 | O35: =D1b!O35 -> 18 | P35: =ROUND(O35,0) -> 18 | Q35: =M35-K35 -> 2 | R35: =P35/Q35 -> 9 | T35: 0 | U35: ≤ x < | V35: 10 | W35: =D1b!W35 -> 15 | X35: =D1b!X35 -> 15 | Y35: =ROUND(X35,0) -> 15 | Z35: =V35-T35 -> 10 | AA35: =Y35/Z35 -> 1.5
B36: 5 | C36: ≤ x < | D36: 10 | E36: =D1b!E36 -> 11 | F36: =D1b!F36 -> 12.1 | G36: =ROUND(F36,0) -> 12 | H36: =D36-B36 -> 5 | I36: =G36/H36 -> 2.4 | K36: 2 | L36: ≤ x < | M36: 6 | N36: =D1b!N36 -> 18 | O36: =D1b!O36 -> 34.2 | P36: =ROUND(O36,0) -> 34 | Q36: =M36-K36 -> 4 | R36: =P36/Q36 -> 8.5 | T36: 10 | U36: ≤ x < | V36: 20 | W36: =D1b!W36 -> 15 | X36: =D1b!X36 -> 28.5 | Y36: =ROUND(X36,0) -> 29 | Z36: =V36-T36 -> 10 | AA36: =Y36/Z36 -> 2.9
B37: 10 | C37: ≤ x < | D37: 20 | E37: =D1b!E37 -> 11 | F37: =D1b!F37 -> 23.1 | G37: 23 | H37: 10 | I37: 2.3 | K37: 6 | L37: ≤ x < | M37: 10 | N37: =D1b!N37 -> 18 | O37: =D1b!O37 -> 41.4 | P37: 41 | Q37: 4 | R37: 10.25 | T37: 20 | U37: ≤ x < | V37: 40 | W37: =D1b!W37 -> 15 | X37: =D1b!X37 -> 33 | Y37: 33 | Z37: 20 | AA37: 1.65
B38: 20 | C38: ≤ x < | D38: 40 | E38: =D1b!E38 -> 11 | F38: =D1b!F38 -> 27.5 | G38: 28 | H38: 20 | I38: 1.4 | K38: 10 | L38: ≤ x < | M38: 15 | N38: =D1b!N38 -> 18 | O38: =D1b!O38 -> 45 | P38: 45 | Q38: 5 | R38: 9 | T38: 40 | U38: ≤ x < | V38: 60 | W38: =D1b!W38 -> 15 | X38: =D1b!X38 -> 45 | Y38: 45 | Z38: 20 | AA38: 2.25
B39: 40 | C39: ≤ x < | D39: 55 | E39: =D1b!E39 -> 11 | F39: =D1b!F39 -> 19.8 | G39: 20 | H39: 15 | I39: 1.333333333 | K39: 15 | L39: ≤ x < | M39: 25 | N39: =D1b!N39 -> 18 | O39: =D1b!O39 -> 28.8 | P39: 29 | Q39: 10 | R39: 2.9 | T39: 60 | U39: ≤ x < | V39: 70 | W39: =D1b!W39 -> 15 | X39: =D1b!X39 -> 24 | Y39: 24 | Z39: 10 | AA39: 2.4
B40: 55 | C40: ≤ x < | D40: 65 | E40: =D1b!E40 -> 11 | F40: =D1b!F40 -> 1.1 | G40: 1 | H40: 10 | I40: 0.1 | K40: 25 | L40: ≤ x < | M40: 30 | N40: =D1b!N40 -> 18 | O40: =D1b!O40 -> 16.2 | P40: 16 | Q40: 5 | R40: 3.2 | T40: 70 | U40: ≤ x < | V40: 75 | W40: =D1b!W40 -> 15 | X40: =D1b!X40 -> 1.5 | Y40: 2 | Z40: 5 | AA40: 0.4

Sheet Sheet1 (hidden)
DO2: Estimation | DP2: 1
DO3: Stem & Leaf | DP3: 1 | DR3: Included
DO4: Compound Interest/Depreciation | DP4: 1 | DR4: Included
DO5: Reverse Percentages | DP5: 1 | DR5: Included
DO6: angles in polygons | DP6: 1 | DQ6: early in | DR6: set it up in G worksheet
DO7: rearranging formulae | DP7: 1 | DQ7: after inequalities
DO8: Parallel and perpendicular lines | DP8: 1 | DQ8: Last topic | DR8: set it up in G worksheet
DO10: DST/ DMV | DP10: 2
DO11: Bounds | DP11: 2 | DQ11: Before quadratics | DR11: Included
DO12: Volume of cone/pyramid/sphere | DP12: 2
DO13: circle theorems | DP13: 2 | DR13: Included
DO14: vectors | DP14: 2
DO15: area of triangle using 0.5absinC | DP15: 2 | DR15: included
DO16: Algebraic fractions | DP16: 2 | DR16: included
DO17: sine and cosine rule | DP17: 2
